Department Family,Entity,Date,Expense Type,Expense Area,Supplier,SME,Transaction Number,Amount,Description,Expenditure Type
Land Registry,Land Registry,25/11/2015,Facilities - Quoted & Ad Hoc Works,Governance & Policy,Banner Business Services Ltd,Large,1131317,"-4,212.80",Facilities - Quoted Works,Administration
Land Registry,Land Registry,25/11/2015,Stationery National Contracts,Birkenhead Office,Banner Business Services Ltd,Large,1131317,"3,172.14",Stationery,Administration
Land Registry,Land Registry,25/11/2015,Stationery National Contracts,Central RFS,Banner Business Services Ltd,Large,1131317,896.64,Stationery,Administration
Land Registry,Land Registry,25/11/2015,Stationery National Contracts,Chief Executives Office,Banner Business Services Ltd,Large,1131317,200.30,Stationery,Administration
Land Registry,Land Registry,25/11/2015,Stationery National Contracts,Corp Procurement,Banner Business Services Ltd,Large,1131317,38.96,Stationery,Administration
Land Registry,Land Registry,25/11/2015,Stationery National Contracts,Corporate Legal Services,Banner Business Services Ltd,Large,1131317,13.10,Stationery,Administration
Land Registry,Land Registry,25/11/2015,Stationery National Contracts,Coventry Office,Banner Business Services Ltd,Large,1131317,"4,607.84",Stationery,Administration
Land Registry,Land Registry,25/11/2015,Stationery National Contracts,Croydon Office,Banner Business Services Ltd,Large,1131317,"1,601.62",Stationery,Administration
Land Registry,Land Registry,25/11/2015,Stationery National Contracts,Durham Office,Banner Business Services Ltd,Large,1131317,"2,006.31",Stationery,Administration
Land Registry,Land Registry,25/11/2015,Stationery National Contracts,Finance Group,Banner Business Services Ltd,Large,1131317,197.91,Stationery,Administration
Land Registry,Land Registry,25/11/2015,Stationery National Contracts,Fylde Office,Banner Business Services Ltd,Large,1131317,"1,057.17",Stationery,Administration
Land Registry,Land Registry,25/11/2015,Stationery National Contracts,Gloucester Office,Banner Business Services Ltd,Large,1131317,"1,464.97",Stationery,Administration
Land Registry,Land Registry,25/11/2015,Stationery National Contracts,Governance & Policy,Banner Business Services Ltd,Large,1131317,50.84,Stationery,Administration
Land Registry,Land Registry,25/11/2015,Stationery National Contracts,HR,Banner Business Services Ltd,Large,1131317,105.88,Stationery,Administration
Land Registry,Land Registry,25/11/2015,Stationery National Contracts,Hull Office,Banner Business Services Ltd,Large,1131317,"4,367.76",Stationery,Administration
Land Registry,Land Registry,25/11/2015,Stationery National Contracts,Internal Solutions Group,Banner Business Services Ltd,Large,1131317,700.41,Stationery,Administration
Land Registry,Land Registry,25/11/2015,Stationery National Contracts,International Unit,Banner Business Services Ltd,Large,1131317,75.75,Stationery,Administration
Land Registry,Land Registry,25/11/2015,Stationery National Contracts,IS Service Delivery,Banner Business Services Ltd,Large,1131317,"2,485.06",Stationery,Administration
Land Registry,Land Registry,25/11/2015,Stationery National Contracts,Land Charges,Banner Business Services Ltd,Large,1131317,546.14,Stationery,Administration
Land Registry,Land Registry,25/11/2015,Stationery National Contracts,Leicester Office,Banner Business Services Ltd,Large,1131317,"1,366.10",Stationery,Administration
Land Registry,Land Registry,25/11/2015,Stationery National Contracts,Marketing Services Team,Banner Business Services Ltd,Large,1131317,32.93,Stationery,Administration
Land Registry,Land Registry,25/11/2015,Stationery National Contracts,Nottingham Office,Banner Business Services Ltd,Large,1131317,"1,657.67",Stationery,Administration
Land Registry,Land Registry,25/11/2015,Stationery National Contracts,Peterborough Office,Banner Business Services Ltd,Large,1131317,"1,165.42",Stationery,Administration
Land Registry,Land Registry,25/11/2015,Stationery National Contracts,Plymouth Office,Banner Business Services Ltd,Large,1131317,"1,578.06",Stationery,Administration
Land Registry,Land Registry,25/11/2015,Stationery National Contracts,Product Development & Management,Banner Business Services Ltd,Large,1131317,97.80,Stationery,Administration
Land Registry,Land Registry,25/11/2015,Stationery National Contracts,Projects and Programme Centre,Banner Business Services Ltd,Large,1131317,96.16,Stationery,Administration
Land Registry,Land Registry,25/11/2015,Stationery National Contracts,Research & Data Mining,Banner Business Services Ltd,Large,1131317,87.60,Stationery,Administration
Land Registry,Land Registry,25/11/2015,Stationery National Contracts,Telford Office,Banner Business Services Ltd,Large,1131317,629.18,Stationery,Administration
Land Registry,Land Registry,25/11/2015,Stationery National Contracts,Wales Office,Banner Business Services Ltd,Large,1131317,"5,755.40",Stationery,Administration
Land Registry,Land Registry,25/11/2015,Stationery National Contracts,Weymouth Office,Banner Business Services Ltd,Large,1131317,648.74,Stationery,Administration
Land Registry,Land Registry,25/11/2015,Stationery National Contracts,Learning and Development,Banner Business Services Ltd,Large,1131317,201.81,Stationery,Administration
Land Registry,Land Registry,25/11/2015,Waste Disposal,Central Facilities Management Team,Banner Business Services Ltd,Large,1131317,"12,127.60",Waste Disposal,Administration
Land Registry,Land Registry,04/11/2015,Data Network Lines,IS Service Delivery,British Telecommunications Plc,Large,1128852,"3,853.12",Data Network Lines,Administration
Land Registry,Land Registry,25/11/2015,Data Network Lines,IS Service Delivery,British Telecommunications Plc,Large,1129646,"250,049.30",Data Network Lines,Administration
Land Registry,Land Registry,04/11/2015,Telephone Costs,IS Service Delivery,British Telecommunications Plc,Large,1128852,"134,617.30",Telephone Costs,Administration
Land Registry,Land Registry,23/11/2015,Electricity,Birkenhead Office,Carillion Services Ltd,Large,1130912,"4,922.93",Electricity,Administration
Land Registry,Land Registry,23/11/2015,Electricity,Coventry Office,Carillion Services Ltd,Large,1130912,"11,839.60",Electricity,Administration
Land Registry,Land Registry,23/11/2015,Electricity,Croydon Office,Carillion Services Ltd,Large,1130912,"6,918.69",Electricity,Administration
Land Registry,Land Registry,23/11/2015,Electricity,Durham Office,Carillion Services Ltd,Large,1130912,"4,453.25",Electricity,Administration
Land Registry,Land Registry,23/11/2015,Electricity,Fylde Office,Carillion Services Ltd,Large,1130912,"4,163.65",Electricity,Administration
Land Registry,Land Registry,23/11/2015,Electricity,Gloucester Computer Centre,Carillion Services Ltd,Large,1130912,"29,998.79",Electricity,Administration
Land Registry,Land Registry,23/11/2015,Electricity,Gloucester Office,Carillion Services Ltd,Large,1130912,"5,053.09",Electricity,Administration
Land Registry,Land Registry,23/11/2015,Electricity,Governance & Policy,Carillion Services Ltd,Large,1130912,"47,992.41",Electricity,Administration
Land Registry,Land Registry,23/11/2015,Electricity,Hull Office,Carillion Services Ltd,Large,1130912,"10,892.02",Electricity,Administration
Land Registry,Land Registry,23/11/2015,Electricity,Leicester Office,Carillion Services Ltd,Large,1130912,"6,868.15",Electricity,Administration
Land Registry,Land Registry,23/11/2015,Electricity,Nottingham Office,Carillion Services Ltd,Large,1130912,"7,077.92",Electricity,Administration
Land Registry,Land Registry,23/11/2015,Electricity,Telford Office,Carillion Services Ltd,Large,1130912,"5,282.71",Electricity,Administration
Land Registry,Land Registry,23/11/2015,Electricity,Wales Office,Carillion Services Ltd,Large,1130912,"6,410.28",Electricity,Administration
Land Registry,Land Registry,23/11/2015,Electricity,Weymouth Office,Carillion Services Ltd,Large,1130912,"3,551.09",Electricity,Administration
Land Registry,Land Registry,23/11/2015,Electricity,Dir: Finance,Carillion Services Ltd,Large,1130912,"13,999.84",Electricity,Administration
Land Registry,Land Registry,23/11/2015,Facilities - Core Fee,Birkenhead Office,Carillion Services Ltd,Large,1130939,"5,580.10",Facilities - Core Fee,Administration
Land Registry,Land Registry,23/11/2015,Facilities - Core Fee,Coventry Office,Carillion Services Ltd,Large,1130939,"12,826.79",Facilities - Core Fee,Administration
Land Registry,Land Registry,23/11/2015,Facilities - Core Fee,Croydon Office,Carillion Services Ltd,Large,1130939,"8,676.21",Facilities - Core Fee,Administration
Land Registry,Land Registry,23/11/2015,Facilities - Core Fee,Durham Office,Carillion Services Ltd,Large,1130939,"6,636.43",Facilities - Core Fee,Administration
Land Registry,Land Registry,23/11/2015,Facilities - Core Fee,Fylde Office,Carillion Services Ltd,Large,1130939,"4,362.95",Facilities - Core Fee,Administration
Land Registry,Land Registry,23/11/2015,Facilities - Core Fee,Gloucester Computer Centre,Carillion Services Ltd,Large,1130939,"8,505.82",Facilities - Core Fee,Administration
Land Registry,Land Registry,23/11/2015,Facilities - Core Fee,Gloucester Office,Carillion Services Ltd,Large,1130939,"3,886.11",Facilities - Core Fee,Administration
Land Registry,Land Registry,23/11/2015,Facilities - Core Fee,Governance & Policy,Carillion Services Ltd,Large,1130939,"18,825.67",Facilities - Core Fee,Administration
Land Registry,Land Registry,23/11/2015,Facilities - Core Fee,Hull Office,Carillion Services Ltd,Large,1130939,"7,037.07",Facilities - Core Fee,Administration
Land Registry,Land Registry,23/11/2015,Facilities - Core Fee,Leicester Office,Carillion Services Ltd,Large,1130939,"10,114.17",Facilities - Core Fee,Administration
Land Registry,Land Registry,23/11/2015,Facilities - Core Fee,Nottingham Office,Carillion Services Ltd,Large,1130939,"6,653.53",Facilities - Core Fee,Administration
Land Registry,Land Registry,23/11/2015,Facilities - Core Fee,Peterborough Office,Carillion Services Ltd,Large,1130939,"3,791.75",Facilities - Core Fee,Administration
Land Registry,Land Registry,23/11/2015,Facilities - Core Fee,RFS4 - Coventry,Carillion Services Ltd,Large,1130939,23.41,Facilities - Core Fee,Administration
Land Registry,Land Registry,23/11/2015,Facilities - Core Fee,Telford Office,Carillion Services Ltd,Large,1130939,"6,783.46",Facilities - Core Fee,Administration
Land Registry,Land Registry,23/11/2015,Facilities - Core Fee,Wales Office,Carillion Services Ltd,Large,1130939,"5,740.89",Facilities - Core Fee,Administration
Land Registry,Land Registry,23/11/2015,Facilities - Core Fee,Weymouth Office,Carillion Services Ltd,Large,1130939,"2,873.07",Facilities - Core Fee,Administration
Land Registry,Land Registry,23/11/2015,Facilities - Quoted & Ad Hoc Works,Birkenhead Office,Carillion Services Ltd,Large,1130913,"8,928.79",Facilities - Quoted & Ad Hoc Works,Administration
Land Registry,Land Registry,23/11/2015,Facilities - Quoted & Ad Hoc Works,Coventry Office,Carillion Services Ltd,Large,1130913,"2,611.74",Facilities - Quoted & Ad Hoc Works,Administration
Land Registry,Land Registry,23/11/2015,Facilities - Quoted & Ad Hoc Works,Croydon Office,Carillion Services Ltd,Large,1130913,"4,099.84",Facilities - Quoted & Ad Hoc Works,Administration
Land Registry,Land Registry,23/11/2015,Facilities - Quoted & Ad Hoc Works,Durham Office,Carillion Services Ltd,Large,1130913,"5,047.96",Facilities - Quoted & Ad Hoc Works,Administration
Land Registry,Land Registry,23/11/2015,Facilities - Quoted & Ad Hoc Works,Fylde Office,Carillion Services Ltd,Large,1130913,"-1,922.34",Facilities - Quoted & Ad Hoc Works,Administration
Land Registry,Land Registry,23/11/2015,Facilities - Quoted & Ad Hoc Works,Gloucester Computer Centre,Carillion Services Ltd,Large,1130913,"47,093.23",Facilities - Quoted & Ad Hoc Works,Administration
Land Registry,Land Registry,23/11/2015,Facilities - Quoted & Ad Hoc Works,Gloucester Office,Carillion Services Ltd,Large,1130913,"43,893.72",Facilities - Quoted & Ad Hoc Works,Administration
Land Registry,Land Registry,23/11/2015,Facilities - Quoted & Ad Hoc Works,Governance & Policy,Carillion Services Ltd,Large,1130913,"72,860.20",Facilities - Quoted & Ad Hoc Works,Administration
Land Registry,Land Registry,23/11/2015,Facilities - Quoted & Ad Hoc Works,Hull Office,Carillion Services Ltd,Large,1130913,"4,623.47",Facilities - Quoted & Ad Hoc Works,Administration
Land Registry,Land Registry,23/11/2015,Facilities - Quoted & Ad Hoc Works,Leicester Office,Carillion Services Ltd,Large,1130913,"5,780.47",Facilities - Quoted & Ad Hoc Works,Administration
Land Registry,Land Registry,23/11/2015,Facilities - Quoted & Ad Hoc Works,Nottingham Office,Carillion Services Ltd,Large,1130913,"6,488.84",Facilities - Quoted & Ad Hoc Works,Administration
Land Registry,Land Registry,23/11/2015,Facilities - Quoted & Ad Hoc Works,Peterborough Office,Carillion Services Ltd,Large,1130913,"1,107.45",Facilities - Quoted & Ad Hoc Works,Administration
Land Registry,Land Registry,23/11/2015,Facilities - Quoted & Ad Hoc Works,Telford Office,Carillion Services Ltd,Large,1130913,"8,705.11",Facilities - Quoted & Ad Hoc Works,Administration
Land Registry,Land Registry,23/11/2015,Facilities - Quoted & Ad Hoc Works,Wales Office,Carillion Services Ltd,Large,1130913,"6,938.09",Facilities - Quoted & Ad Hoc Works,Administration
Land Registry,Land Registry,23/11/2015,Facilities - Quoted & Ad Hoc Works,Weymouth Office,Carillion Services Ltd,Large,1130913,"15,361.31",Facilities - Quoted & Ad Hoc Works,Administration
Land Registry,Land Registry,23/11/2015,FF&F:Maintenance,Birkenhead Office,Carillion Services Ltd,Large,1130939,23.54,"Furniture, Fixtures & Fittings Maintenance",Administration
Land Registry,Land Registry,23/11/2015,FF&F:Maintenance,Coventry Office,Carillion Services Ltd,Large,1130939,23.54,"Furniture, Fixtures & Fittings Maintenance",Administration
Land Registry,Land Registry,23/11/2015,FF&F:Maintenance,Croydon Office,Carillion Services Ltd,Large,1130939,23.54,"Furniture, Fixtures & Fittings Maintenance",Administration
Land Registry,Land Registry,23/11/2015,FF&F:Maintenance,Durham Office,Carillion Services Ltd,Large,1130939,23.54,"Furniture, Fixtures & Fittings Maintenance",Administration
Land Registry,Land Registry,23/11/2015,FF&F:Maintenance,Fylde Office,Carillion Services Ltd,Large,1130939,23.54,"Furniture, Fixtures & Fittings Maintenance",Administration
Land Registry,Land Registry,23/11/2015,FF&F:Maintenance,Gloucester Computer Centre,Carillion Services Ltd,Large,1130939,23.54,"Furniture, Fixtures & Fittings Maintenance",Administration
Land Registry,Land Registry,23/11/2015,FF&F:Maintenance,Gloucester Office,Carillion Services Ltd,Large,1130939,23.54,"Furniture, Fixtures & Fittings Maintenance",Administration
Land Registry,Land Registry,23/11/2015,FF&F:Maintenance,Governance & Policy,Carillion Services Ltd,Large,1130939,70.62,"Furniture, Fixtures & Fittings Maintenance",Administration
Land Registry,Land Registry,23/11/2015,FF&F:Maintenance,Hull Office,Carillion Services Ltd,Large,1130939,23.54,"Furniture, Fixtures & Fittings Maintenance",Administration
Land Registry,Land Registry,23/11/2015,FF&F:Maintenance,Leicester Office,Carillion Services Ltd,Large,1130939,47.08,"Furniture, Fixtures & Fittings Maintenance",Administration
Land Registry,Land Registry,23/11/2015,FF&F:Maintenance,Nottingham Office,Carillion Services Ltd,Large,1130939,23.54,"Furniture, Fixtures & Fittings Maintenance",Administration
Land Registry,Land Registry,23/11/2015,FF&F:Maintenance,Peterborough Office,Carillion Services Ltd,Large,1130939,23.55,"Furniture, Fixtures & Fittings Maintenance",Administration
Land Registry,Land Registry,23/11/2015,FF&F:Maintenance,Telford Office,Carillion Services Ltd,Large,1130939,23.54,"Furniture, Fixtures & Fittings Maintenance",Administration
Land Registry,Land Registry,23/11/2015,FF&F:Maintenance,Wales Office,Carillion Services Ltd,Large,1130939,47.08,"Furniture, Fixtures & Fittings Maintenance",Administration
Land Registry,Land Registry,23/11/2015,FF&F:Maintenance,Weymouth Office,Carillion Services Ltd,Large,1130939,23.54,"Furniture, Fixtures & Fittings Maintenance",Administration
Land Registry,Land Registry,23/11/2015,"FF&F:Purchases <1,000",Birkenhead Office,Carillion Services Ltd,Large,1130913,46.03,"Furniture,Fixtures &Fittings:Purchases less than 1,000",Administration
Land Registry,Land Registry,23/11/2015,"FF&F:Purchases <1,000",Durham Office,Carillion Services Ltd,Large,1130913,"1,174.80","Furniture,Fixtures &Fittings:Purchases less than 1,000",Administration
Land Registry,Land Registry,23/11/2015,"FF&F:Purchases <1,000",Fylde Office,Carillion Services Ltd,Large,1130913,"1,252.30","Furniture,Fixtures &Fittings:Purchases less than 1,000",Administration
Land Registry,Land Registry,23/11/2015,"FF&F:Purchases <1,000",Gloucester Office,Carillion Services Ltd,Large,1130913,"2,154.89","Furniture,Fixtures &Fittings:Purchases less than 1,000",Administration
Land Registry,Land Registry,23/11/2015,"FF&F:Purchases <1,000",Governance & Policy,Carillion Services Ltd,Large,1130913,"1,138.44","Furniture,Fixtures &Fittings:Purchases less than 1,000",Administration
Land Registry,Land Registry,23/11/2015,"FF&F:Purchases <1,000",Hull Office,Carillion Services Ltd,Large,1130913,447.97,"Furniture,Fixtures &Fittings:Purchases less than 1,000",Administration
Land Registry,Land Registry,23/11/2015,"FF&F:Purchases <1,000",Leicester Office,Carillion Services Ltd,Large,1130913,111.33,"Furniture,Fixtures &Fittings:Purchases less than 1,000",Administration
Land Registry,Land Registry,23/11/2015,"FF&F:Purchases <1,000",Nottingham Office,Carillion Services Ltd,Large,1130913,84.85,"Furniture,Fixtures &Fittings:Purchases less than 1,000",Administration
Land Registry,Land Registry,23/11/2015,"FF&F:Purchases <1,000",Telford Office,Carillion Services Ltd,Large,1130913,880.15,"Furniture,Fixtures &Fittings:Purchases less than 1,000",Administration
Land Registry,Land Registry,23/11/2015,"FF&F:Purchases <1,000",Wales Office,Carillion Services Ltd,Large,1130913,780.00,"Furniture,Fixtures &Fittings:Purchases less than 1,000",Administration
Land Registry,Land Registry,23/11/2015,"FF&F:Purchases <1,000",Weymouth Office,Carillion Services Ltd,Large,1130913,"5,894.87","Furniture,Fixtures &Fittings:Purchases less than 1,000",Administration
Land Registry,Land Registry,23/11/2015,FF&F:Removals,Birkenhead Office,Carillion Services Ltd,Large,1130913,545.70,"Furniture, Fixtures & Fittings:Removals",Administration
Land Registry,Land Registry,23/11/2015,FF&F:Removals,Coventry Office,Carillion Services Ltd,Large,1130913,553.19,"Furniture, Fixtures & Fittings:Removals",Administration
Land Registry,Land Registry,23/11/2015,FF&F:Removals,Croydon Office,Carillion Services Ltd,Large,1130913,"1,598.84","Furniture, Fixtures & Fittings:Removals",Administration
Land Registry,Land Registry,23/11/2015,FF&F:Removals,Governance & Policy,Carillion Services Ltd,Large,1130913,"2,230.64","Furniture, Fixtures & Fittings:Removals",Administration
Land Registry,Land Registry,23/11/2015,FF&F:Removals,Leicester Office,Carillion Services Ltd,Large,1130913,288.37,"Furniture, Fixtures & Fittings:Removals",Administration
Land Registry,Land Registry,23/11/2015,FF&F:Removals,Telford Office,Carillion Services Ltd,Large,1130913,517.88,"Furniture, Fixtures & Fittings:Removals",Administration
Land Registry,Land Registry,23/11/2015,FF&F:Removals,Wales Office,Carillion Services Ltd,Large,1130913,"1,797.60","Furniture, Fixtures & Fittings:Removals",Administration
Land Registry,Land Registry,23/11/2015,FF&F:Removals,Weymouth Office,Carillion Services Ltd,Large,1130913,"4,917.17","Furniture, Fixtures & Fittings:Removals",Administration
Land Registry,Land Registry,23/11/2015,FM Ext Helpdesk,Birkenhead Office,Carillion Services Ltd,Large,1130939,462.47,Facilities External Helpdesk,Administration
Land Registry,Land Registry,23/11/2015,FM Ext Helpdesk,Coventry Office,Carillion Services Ltd,Large,1130939,938.39,Facilities External Helpdesk,Administration
Land Registry,Land Registry,23/11/2015,FM Ext Helpdesk,Croydon Office,Carillion Services Ltd,Large,1130939,556.67,Facilities External Helpdesk,Administration
Land Registry,Land Registry,23/11/2015,FM Ext Helpdesk,Durham Office,Carillion Services Ltd,Large,1130939,580.43,Facilities External Helpdesk,Administration
Land Registry,Land Registry,23/11/2015,FM Ext Helpdesk,Fylde Office,Carillion Services Ltd,Large,1130939,403.65,Facilities External Helpdesk,Administration
Land Registry,Land Registry,23/11/2015,FM Ext Helpdesk,Gloucester Computer Centre,Carillion Services Ltd,Large,1130939,539.30,Facilities External Helpdesk,Administration
Land Registry,Land Registry,23/11/2015,FM Ext Helpdesk,Gloucester Office,Carillion Services Ltd,Large,1130939,581.34,Facilities External Helpdesk,Administration
Land Registry,Land Registry,23/11/2015,FM Ext Helpdesk,Governance & Policy,Carillion Services Ltd,Large,1130939,"1,474.52",Facilities External Helpdesk,Administration
Land Registry,Land Registry,23/11/2015,FM Ext Helpdesk,Hull Office,Carillion Services Ltd,Large,1130939,453.62,Facilities External Helpdesk,Administration
Land Registry,Land Registry,23/11/2015,FM Ext Helpdesk,Leicester Office,Carillion Services Ltd,Large,1130939,507.76,Facilities External Helpdesk,Administration
Land Registry,Land Registry,23/11/2015,FM Ext Helpdesk,Nottingham Office,Carillion Services Ltd,Large,1130939,"1,793.61",Facilities External Helpdesk,Administration
Land Registry,Land Registry,23/11/2015,FM Ext Helpdesk,Peterborough Office,Carillion Services Ltd,Large,1130939,592.41,Facilities External Helpdesk,Administration
Land Registry,Land Registry,23/11/2015,FM Ext Helpdesk,RFS4 - Coventry,Carillion Services Ltd,Large,1130939,7.76,Facilities External Helpdesk,Administration
Land Registry,Land Registry,23/11/2015,FM Ext Helpdesk,Telford Office,Carillion Services Ltd,Large,1130939,613.01,Facilities External Helpdesk,Administration
Land Registry,Land Registry,23/11/2015,FM Ext Helpdesk,Wales Office,Carillion Services Ltd,Large,1130939,439.50,Facilities External Helpdesk,Administration
Land Registry,Land Registry,23/11/2015,FM Ext Helpdesk,Weymouth Office,Carillion Services Ltd,Large,1130939,357.28,Facilities External Helpdesk,Administration
Land Registry,Land Registry,23/11/2015,FM Managed Services,Birkenhead Office,Carillion Services Ltd,Large,1130939,"6,097.91",Facilities Managed Services,Administration
Land Registry,Land Registry,23/11/2015,FM Managed Services,Coventry Office,Carillion Services Ltd,Large,1130939,"7,406.02",Facilities Managed Services,Administration
Land Registry,Land Registry,23/11/2015,FM Managed Services,Croydon Office,Carillion Services Ltd,Large,1130939,"6,165.11",Facilities Managed Services,Administration
Land Registry,Land Registry,23/11/2015,FM Managed Services,Durham Office,Carillion Services Ltd,Large,1130939,"5,902.51",Facilities Managed Services,Administration
Land Registry,Land Registry,23/11/2015,FM Managed Services,Fylde Office,Carillion Services Ltd,Large,1130939,"5,790.91",Facilities Managed Services,Administration
Land Registry,Land Registry,23/11/2015,FM Managed Services,Gloucester Computer Centre,Carillion Services Ltd,Large,1130939,"2,722.31",Facilities Managed Services,Administration
Land Registry,Land Registry,23/11/2015,FM Managed Services,Gloucester Office,Carillion Services Ltd,Large,1130939,"3,140.30",Facilities Managed Services,Administration
Land Registry,Land Registry,23/11/2015,FM Managed Services,Governance & Policy,Carillion Services Ltd,Large,1130939,"13,789.17",Facilities Managed Services,Administration
Land Registry,Land Registry,23/11/2015,FM Managed Services,Hull Office,Carillion Services Ltd,Large,1130939,"5,614.68",Facilities Managed Services,Administration
Land Registry,Land Registry,23/11/2015,FM Managed Services,Leicester Office,Carillion Services Ltd,Large,1130939,"6,539.67",Facilities Managed Services,Administration
Land Registry,Land Registry,23/11/2015,FM Managed Services,Nottingham Office,Carillion Services Ltd,Large,1130939,"10,927.96",Facilities Managed Services,Administration
Land Registry,Land Registry,23/11/2015,FM Managed Services,Peterborough Office,Carillion Services Ltd,Large,1130939,"5,413.85",Facilities Managed Services,Administration
Land Registry,Land Registry,23/11/2015,FM Managed Services,RFS4 - Coventry,Carillion Services Ltd,Large,1130939,24.99,Facilities Managed Services,Administration
Land Registry,Land Registry,23/11/2015,FM Managed Services,Telford Office,Carillion Services Ltd,Large,1130939,"6,087.72",Facilities Managed Services,Administration
Land Registry,Land Registry,23/11/2015,FM Managed Services,Wales Office,Carillion Services Ltd,Large,1130939,"5,657.53",Facilities Managed Services,Administration
Land Registry,Land Registry,23/11/2015,FM Managed Services,Weymouth Office,Carillion Services Ltd,Large,1130939,"5,791.88",Facilities Managed Services,Administration
Land Registry,Land Registry,23/11/2015,FM Managed Services,Birkenhead Office,Carillion Services Ltd,Large,1130913,902.99,Facilities Managed Services,Administration
Land Registry,Land Registry,23/11/2015,FM Managed Services,Coventry Office,Carillion Services Ltd,Large,1130913,"2,914.05",Facilities Managed Services,Administration
Land Registry,Land Registry,23/11/2015,FM Managed Services,Croydon Office,Carillion Services Ltd,Large,1130913,"2,812.94",Facilities Managed Services,Administration
Land Registry,Land Registry,23/11/2015,FM Managed Services,Durham Office,Carillion Services Ltd,Large,1130913,902.99,Facilities Managed Services,Administration
Land Registry,Land Registry,23/11/2015,FM Managed Services,Fylde Office,Carillion Services Ltd,Large,1130913,902.99,Facilities Managed Services,Administration
Land Registry,Land Registry,23/11/2015,FM Managed Services,Gloucester Office,Carillion Services Ltd,Large,1130913,902.99,Facilities Managed Services,Administration
Land Registry,Land Registry,23/11/2015,FM Managed Services,Governance & Policy,Carillion Services Ltd,Large,1130913,"1,534.25",Facilities Managed Services,Administration
Land Registry,Land Registry,23/11/2015,FM Managed Services,Hull Office,Carillion Services Ltd,Large,1130913,902.99,Facilities Managed Services,Administration
Land Registry,Land Registry,23/11/2015,FM Managed Services,Leicester Office,Carillion Services Ltd,Large,1130913,902.99,Facilities Managed Services,Administration
Land Registry,Land Registry,23/11/2015,FM Managed Services,Nottingham Office,Carillion Services Ltd,Large,1130913,"1,805.97",Facilities Managed Services,Administration
Land Registry,Land Registry,23/11/2015,FM Managed Services,Peterborough Office,Carillion Services Ltd,Large,1130913,"2,160.26",Facilities Managed Services,Administration
Land Registry,Land Registry,23/11/2015,FM Managed Services,Telford Office,Carillion Services Ltd,Large,1130913,902.99,Facilities Managed Services,Administration
Land Registry,Land Registry,23/11/2015,FM Managed Services,Wales Office,Carillion Services Ltd,Large,1130913,902.99,Facilities Managed Services,Administration
Land Registry,Land Registry,23/11/2015,FM Managed Services,Weymouth Office,Carillion Services Ltd,Large,1130913,902.99,Facilities Managed Services,Administration
Land Registry,Land Registry,23/11/2015,Gas,Birkenhead Office,Carillion Services Ltd,Large,1130912,519.84,Gas,Administration
Land Registry,Land Registry,23/11/2015,Gas,Coventry Office,Carillion Services Ltd,Large,1130912,"2,843.79",Gas,Administration
Land Registry,Land Registry,23/11/2015,Gas,Croydon Office,Carillion Services Ltd,Large,1130912,800.57,Gas,Administration
Land Registry,Land Registry,23/11/2015,Gas,Durham Office,Carillion Services Ltd,Large,1130912,435.27,Gas,Administration
Land Registry,Land Registry,23/11/2015,Gas,Fylde Office,Carillion Services Ltd,Large,1130912,680.72,Gas,Administration
Land Registry,Land Registry,23/11/2015,Gas,Gloucester Computer Centre,Carillion Services Ltd,Large,1130912,94.88,Gas,Administration
Land Registry,Land Registry,23/11/2015,Gas,Gloucester Office,Carillion Services Ltd,Large,1130912,468.90,Gas,Administration
Land Registry,Land Registry,23/11/2015,Gas,Governance & Policy,Carillion Services Ltd,Large,1130912,912.34,Gas,Administration
Land Registry,Land Registry,23/11/2015,Gas,Hull Office,Carillion Services Ltd,Large,1130912,"1,202.99",Gas,Administration
Land Registry,Land Registry,23/11/2015,Gas,Leicester Office,Carillion Services Ltd,Large,1130912,"1,007.45",Gas,Administration
Land Registry,Land Registry,23/11/2015,Gas,Nottingham Office,Carillion Services Ltd,Large,1130912,247.43,Gas,Administration
Land Registry,Land Registry,23/11/2015,Gas,Telford Office,Carillion Services Ltd,Large,1130912,"1,348.55",Gas,Administration
Land Registry,Land Registry,23/11/2015,Gas,Wales Office,Carillion Services Ltd,Large,1130912,399.12,Gas,Administration
Land Registry,Land Registry,23/11/2015,Gas,Weymouth Office,Carillion Services Ltd,Large,1130912,687.29,Gas,Administration
Land Registry,Land Registry,23/11/2015,Gas,Dir: Finance,Carillion Services Ltd,Large,1130912,948.06,Gas,Administration
Land Registry,Land Registry,23/11/2015,Grounds Maintenance,Birkenhead Office,Carillion Services Ltd,Large,1130939,355.36,Grounds Maintenance,Administration
Land Registry,Land Registry,23/11/2015,Grounds Maintenance,Coventry Office,Carillion Services Ltd,Large,1130939,672.52,Grounds Maintenance,Administration
Land Registry,Land Registry,23/11/2015,Grounds Maintenance,Croydon Office,Carillion Services Ltd,Large,1130939,67.00,Grounds Maintenance,Administration
Land Registry,Land Registry,23/11/2015,Grounds Maintenance,Durham Office,Carillion Services Ltd,Large,1130939,832.33,Grounds Maintenance,Administration
Land Registry,Land Registry,23/11/2015,Grounds Maintenance,Fylde Office,Carillion Services Ltd,Large,1130939,"1,554.42",Grounds Maintenance,Administration
Land Registry,Land Registry,23/11/2015,Grounds Maintenance,Gloucester Computer Centre,Carillion Services Ltd,Large,1130939,94.07,Grounds Maintenance,Administration
Land Registry,Land Registry,23/11/2015,Grounds Maintenance,Gloucester Office,Carillion Services Ltd,Large,1130939,636.14,Grounds Maintenance,Administration
Land Registry,Land Registry,23/11/2015,Grounds Maintenance,Governance & Policy,Carillion Services Ltd,Large,1130939,"1,520.50",Grounds Maintenance,Administration
Land Registry,Land Registry,23/11/2015,Grounds Maintenance,Hull Office,Carillion Services Ltd,Large,1130939,636.14,Grounds Maintenance,Administration
Land Registry,Land Registry,23/11/2015,Grounds Maintenance,Leicester Office,Carillion Services Ltd,Large,1130939,200.91,Grounds Maintenance,Administration
Land Registry,Land Registry,23/11/2015,Grounds Maintenance,Nottingham Office,Carillion Services Ltd,Large,1130939,322.52,Grounds Maintenance,Administration
Land Registry,Land Registry,23/11/2015,Grounds Maintenance,Telford Office,Carillion Services Ltd,Large,1130939,"1,096.26",Grounds Maintenance,Administration
Land Registry,Land Registry,23/11/2015,Grounds Maintenance,Wales Office,Carillion Services Ltd,Large,1130939,471.95,Grounds Maintenance,Administration
Land Registry,Land Registry,23/11/2015,Grounds Maintenance,Weymouth Office,Carillion Services Ltd,Large,1130939,733.21,Grounds Maintenance,Administration
Land Registry,Land Registry,23/11/2015,Grounds Maintenance,Fylde Office,Carillion Services Ltd,Large,1130913,176.55,Grounds Maintenance,Administration
Land Registry,Land Registry,23/11/2015,Grounds Maintenance,Gloucester Office,Carillion Services Ltd,Large,1130913,521.20,Grounds Maintenance,Administration
Land Registry,Land Registry,23/11/2015,Grounds Maintenance,Governance & Policy,Carillion Services Ltd,Large,1130913,"3,317.00",Grounds Maintenance,Administration
Land Registry,Land Registry,23/11/2015,Grounds Maintenance,Wales Office,Carillion Services Ltd,Large,1130913,830.10,Grounds Maintenance,Administration
Land Registry,Land Registry,23/11/2015,Grounds Maintenance,Weymouth Office,Carillion Services Ltd,Large,1130913,604.34,Grounds Maintenance,Administration
Land Registry,Land Registry,23/11/2015,Office Cleaning Expenses,Birkenhead Office,Carillion Services Ltd,Large,1130939,"5,309.21",Office Cleaning Expenses,Administration
Land Registry,Land Registry,23/11/2015,Office Cleaning Expenses,Coventry Office,Carillion Services Ltd,Large,1130939,"5,427.82",Office Cleaning Expenses,Administration
Land Registry,Land Registry,23/11/2015,Office Cleaning Expenses,Croydon Office,Carillion Services Ltd,Large,1130939,"4,026.55",Office Cleaning Expenses,Administration
Land Registry,Land Registry,23/11/2015,Office Cleaning Expenses,Durham Office,Carillion Services Ltd,Large,1130939,"6,166.96",Office Cleaning Expenses,Administration
Land Registry,Land Registry,23/11/2015,Office Cleaning Expenses,Fylde Office,Carillion Services Ltd,Large,1130939,"3,640.35",Office Cleaning Expenses,Administration
Land Registry,Land Registry,23/11/2015,Office Cleaning Expenses,Gloucester Computer Centre,Carillion Services Ltd,Large,1130939,529.72,Office Cleaning Expenses,Administration
Land Registry,Land Registry,23/11/2015,Office Cleaning Expenses,Gloucester Office,Carillion Services Ltd,Large,1130939,"6,884.39",Office Cleaning Expenses,Administration
Land Registry,Land Registry,23/11/2015,Office Cleaning Expenses,Governance & Policy,Carillion Services Ltd,Large,1130939,"8,668.11",Office Cleaning Expenses,Administration
Land Registry,Land Registry,23/11/2015,Office Cleaning Expenses,Hull Office,Carillion Services Ltd,Large,1130939,"3,855.48",Office Cleaning Expenses,Administration
Land Registry,Land Registry,23/11/2015,Office Cleaning Expenses,Leicester Office,Carillion Services Ltd,Large,1130939,"3,319.50",Office Cleaning Expenses,Administration
Land Registry,Land Registry,23/11/2015,Office Cleaning Expenses,Nottingham Office,Carillion Services Ltd,Large,1130939,"5,829.74",Office Cleaning Expenses,Administration
Land Registry,Land Registry,23/11/2015,Office Cleaning Expenses,Peterborough Office,Carillion Services Ltd,Large,1130939,827.71,Office Cleaning Expenses,Administration
Land Registry,Land Registry,23/11/2015,Office Cleaning Expenses,Telford Office,Carillion Services Ltd,Large,1130939,"6,005.76",Office Cleaning Expenses,Administration
Land Registry,Land Registry,23/11/2015,Office Cleaning Expenses,Wales Office,Carillion Services Ltd,Large,1130939,"4,873.22",Office Cleaning Expenses,Administration
Land Registry,Land Registry,23/11/2015,Office Cleaning Expenses,Weymouth Office,Carillion Services Ltd,Large,1130939,"4,306.07",Office Cleaning Expenses,Administration
Land Registry,Land Registry,23/11/2015,Office Cleaning Expenses,Dir: Finance,Carillion Services Ltd,Large,1130939,278.85,Office Cleaning Expenses,Administration
Land Registry,Land Registry,23/11/2015,Office Cleaning Expenses,Durham Office,Carillion Services Ltd,Large,1130913,586.17,Office Cleaning Expenses,Administration
Land Registry,Land Registry,23/11/2015,Office Cleaning Expenses,Governance & Policy,Carillion Services Ltd,Large,1130913,142.31,Office Cleaning Expenses,Administration
Land Registry,Land Registry,23/11/2015,Office Cleaning Expenses,Hull Office,Carillion Services Ltd,Large,1130913,508.06,Office Cleaning Expenses,Administration
Land Registry,Land Registry,23/11/2015,Office Cleaning Expenses,Leicester Office,Carillion Services Ltd,Large,1130913,228.98,Office Cleaning Expenses,Administration
Land Registry,Land Registry,23/11/2015,Office Cleaning Expenses,Weymouth Office,Carillion Services Ltd,Large,1130913,40.40,Office Cleaning Expenses,Administration
Land Registry,Land Registry,23/11/2015,Pest Control,Birkenhead Office,Carillion Services Ltd,Large,1130939,40.61,Pest Control,Administration
Land Registry,Land Registry,23/11/2015,Pest Control,Coventry Office,Carillion Services Ltd,Large,1130939,51.76,Pest Control,Administration
Land Registry,Land Registry,23/11/2015,Pest Control,Croydon Office,Carillion Services Ltd,Large,1130939,38.99,Pest Control,Administration
Land Registry,Land Registry,23/11/2015,Pest Control,Durham Office,Carillion Services Ltd,Large,1130939,47.50,Pest Control,Administration
Land Registry,Land Registry,23/11/2015,Pest Control,Fylde Office,Carillion Services Ltd,Large,1130939,38.39,Pest Control,Administration
Land Registry,Land Registry,23/11/2015,Pest Control,Gloucester Computer Centre,Carillion Services Ltd,Large,1130939,27.75,Pest Control,Administration
Land Registry,Land Registry,23/11/2015,Pest Control,Gloucester Office,Carillion Services Ltd,Large,1130939,45.29,Pest Control,Administration
Land Registry,Land Registry,23/11/2015,Pest Control,Governance & Policy,Carillion Services Ltd,Large,1130939,139.70,Pest Control,Administration
Land Registry,Land Registry,23/11/2015,Pest Control,Hull Office,Carillion Services Ltd,Large,1130939,48.52,Pest Control,Administration
Land Registry,Land Registry,23/11/2015,Pest Control,Leicester Office,Carillion Services Ltd,Large,1130939,38.39,Pest Control,Administration
Land Registry,Land Registry,23/11/2015,Pest Control,Nottingham Office,Carillion Services Ltd,Large,1130939,131.10,Pest Control,Administration
Land Registry,Land Registry,23/11/2015,Pest Control,Peterborough Office,Carillion Services Ltd,Large,1130939,39.93,Pest Control,Administration
Land Registry,Land Registry,23/11/2015,Pest Control,RFS4 - Coventry,Carillion Services Ltd,Large,1130939,51.76,Pest Control,Administration
Land Registry,Land Registry,23/11/2015,Pest Control,Telford Office,Carillion Services Ltd,Large,1130939,43.59,Pest Control,Administration
Land Registry,Land Registry,23/11/2015,Pest Control,Wales Office,Carillion Services Ltd,Large,1130939,57.55,Pest Control,Administration
Land Registry,Land Registry,23/11/2015,Pest Control,Weymouth Office,Carillion Services Ltd,Large,1130939,40.61,Pest Control,Administration
Land Registry,Land Registry,23/11/2015,Pest Control,Telford Office,Carillion Services Ltd,Large,1130913,704.15,Pest Control,Administration
Land Registry,Land Registry,23/11/2015,Property Management; Other Fees,Dir: Finance,Carillion Services Ltd,Large,1130939,"1,900.62",Property Management; Other Fees,Administration
Land Registry,Land Registry,23/11/2015,Property Management; Other Fees,Dir: Finance,Carillion Services Ltd,Large,1130913,"4,395.59",Property Management; Other Fees,Administration
Land Registry,Land Registry,23/11/2015,Security Expenses,Birkenhead Office,Carillion Services Ltd,Large,1130939,"3,068.04",Security Expenses,Administration
Land Registry,Land Registry,23/11/2015,Security Expenses,Coventry Office,Carillion Services Ltd,Large,1130939,"6,692.36",Security Expenses,Administration
Land Registry,Land Registry,23/11/2015,Security Expenses,Croydon Office,Carillion Services Ltd,Large,1130939,"8,505.10",Security Expenses,Administration
Land Registry,Land Registry,23/11/2015,Security Expenses,Durham Office,Carillion Services Ltd,Large,1130939,"2,487.10",Security Expenses,Administration
Land Registry,Land Registry,23/11/2015,Security Expenses,Fylde Office,Carillion Services Ltd,Large,1130939,"2,252.72",Security Expenses,Administration
Land Registry,Land Registry,23/11/2015,Security Expenses,Gloucester Computer Centre,Carillion Services Ltd,Large,1130939,"7,193.99",Security Expenses,Administration
Land Registry,Land Registry,23/11/2015,Security Expenses,Gloucester Office,Carillion Services Ltd,Large,1130939,"9,157.74",Security Expenses,Administration
Land Registry,Land Registry,23/11/2015,Security Expenses,Governance & Policy,Carillion Services Ltd,Large,1130939,"18,603.16",Security Expenses,Administration
Land Registry,Land Registry,23/11/2015,Security Expenses,Hull Office,Carillion Services Ltd,Large,1130939,"2,816.46",Security Expenses,Administration
Land Registry,Land Registry,23/11/2015,Security Expenses,Leicester Office,Carillion Services Ltd,Large,1130939,"2,538.48",Security Expenses,Administration
Land Registry,Land Registry,23/11/2015,Security Expenses,Nottingham Office,Carillion Services Ltd,Large,1130939,"3,228.60",Security Expenses,Administration
Land Registry,Land Registry,23/11/2015,Security Expenses,Telford Office,Carillion Services Ltd,Large,1130939,"2,770.19",Security Expenses,Administration
Land Registry,Land Registry,23/11/2015,Security Expenses,Wales Office,Carillion Services Ltd,Large,1130939,"2,510.62",Security Expenses,Administration
Land Registry,Land Registry,23/11/2015,Security Expenses,Weymouth Office,Carillion Services Ltd,Large,1130939,"2,772.74",Security Expenses,Administration
Land Registry,Land Registry,23/11/2015,Security Expenses,Birkenhead Office,Carillion Services Ltd,Large,1130913,671.39,Security Expenses,Administration
Land Registry,Land Registry,23/11/2015,Security Expenses,Croydon Office,Carillion Services Ltd,Large,1130913,"4,982.84",Security Expenses,Administration
Land Registry,Land Registry,23/11/2015,Security Expenses,Durham Office,Carillion Services Ltd,Large,1130913,671.45,Security Expenses,Administration
Land Registry,Land Registry,23/11/2015,Security Expenses,Fylde Office,Carillion Services Ltd,Large,1130913,922.09,Security Expenses,Administration
Land Registry,Land Registry,23/11/2015,Security Expenses,Gloucester Office,Carillion Services Ltd,Large,1130913,933.25,Security Expenses,Administration
Land Registry,Land Registry,23/11/2015,Security Expenses,Governance & Policy,Carillion Services Ltd,Large,1130913,"1,914.83",Security Expenses,Administration
Land Registry,Land Registry,23/11/2015,Security Expenses,Hull Office,Carillion Services Ltd,Large,1130913,420.81,Security Expenses,Administration
Land Registry,Land Registry,23/11/2015,Security Expenses,Leicester Office,Carillion Services Ltd,Large,1130913,759.57,Security Expenses,Administration
Land Registry,Land Registry,23/11/2015,Security Expenses,Nottingham Office,Carillion Services Ltd,Large,1130913,720.05,Security Expenses,Administration
Land Registry,Land Registry,23/11/2015,Security Expenses,Peterborough Office,Carillion Services Ltd,Large,1130913,337.26,Security Expenses,Administration
Land Registry,Land Registry,23/11/2015,Security Expenses,Telford Office,Carillion Services Ltd,Large,1130913,691.80,Security Expenses,Administration
Land Registry,Land Registry,23/11/2015,Security Expenses,Wales Office,Carillion Services Ltd,Large,1130913,698.15,Security Expenses,Administration
Land Registry,Land Registry,23/11/2015,Security Expenses,Weymouth Office,Carillion Services Ltd,Large,1130913,"1,265.46",Security Expenses,Administration
Land Registry,Land Registry,23/11/2015,Vending Machine Consumables & Repairs,Birkenhead Office,Carillion Services Ltd,Large,1130939,"1,184.04",Vending Machine Consumables & Repairs,Administration
Land Registry,Land Registry,23/11/2015,Vending Machine Consumables & Repairs,Coventry Office,Carillion Services Ltd,Large,1130939,173.66,Vending Machine Consumables & Repairs,Administration
Land Registry,Land Registry,23/11/2015,Vending Machine Consumables & Repairs,Croydon Office,Carillion Services Ltd,Large,1130939,220.48,Vending Machine Consumables & Repairs,Administration
Land Registry,Land Registry,23/11/2015,Vending Machine Consumables & Repairs,Durham Office,Carillion Services Ltd,Large,1130939,43.42,Vending Machine Consumables & Repairs,Administration
Land Registry,Land Registry,23/11/2015,Vending Machine Consumables & Repairs,Fylde Office,Carillion Services Ltd,Large,1130939,154.93,Vending Machine Consumables & Repairs,Administration
Land Registry,Land Registry,23/11/2015,Vending Machine Consumables & Repairs,Gloucester Computer Centre,Carillion Services Ltd,Large,1130939,19.75,Vending Machine Consumables & Repairs,Administration
Land Registry,Land Registry,23/11/2015,Vending Machine Consumables & Repairs,Gloucester Office,Carillion Services Ltd,Large,1130939,142.00,Vending Machine Consumables & Repairs,Administration
Land Registry,Land Registry,23/11/2015,Vending Machine Consumables & Repairs,Governance & Policy,Carillion Services Ltd,Large,1130939,214.70,Vending Machine Consumables & Repairs,Administration
Land Registry,Land Registry,23/11/2015,Vending Machine Consumables & Repairs,Hull Office,Carillion Services Ltd,Large,1130939,341.54,Vending Machine Consumables & Repairs,Administration
Land Registry,Land Registry,23/11/2015,Vending Machine Consumables & Repairs,Leicester Office,Carillion Services Ltd,Large,1130939,114.24,Vending Machine Consumables & Repairs,Administration
Land Registry,Land Registry,23/11/2015,Vending Machine Consumables & Repairs,Nottingham Office,Carillion Services Ltd,Large,1130939,127.69,Vending Machine Consumables & Repairs,Administration
Land Registry,Land Registry,23/11/2015,Vending Machine Consumables & Repairs,Telford Office,Carillion Services Ltd,Large,1130939,195.03,Vending Machine Consumables & Repairs,Administration
Land Registry,Land Registry,23/11/2015,Vending Machine Consumables & Repairs,Wales Office,Carillion Services Ltd,Large,1130939,191.20,Vending Machine Consumables & Repairs,Administration
Land Registry,Land Registry,23/11/2015,Vending Machine Consumables & Repairs,Weymouth Office,Carillion Services Ltd,Large,1130939,110.67,Vending Machine Consumables & Repairs,Administration
Land Registry,Land Registry,23/11/2015,Waste Disposal,Birkenhead Office,Carillion Services Ltd,Large,1130939,285.18,Waste Disposal,Administration
Land Registry,Land Registry,23/11/2015,Waste Disposal,Coventry Office,Carillion Services Ltd,Large,1130939,238.36,Waste Disposal,Administration
Land Registry,Land Registry,23/11/2015,Waste Disposal,Croydon Office,Carillion Services Ltd,Large,1130939,208.80,Waste Disposal,Administration
Land Registry,Land Registry,23/11/2015,Waste Disposal,Durham Office,Carillion Services Ltd,Large,1130939,332.00,Waste Disposal,Administration
Land Registry,Land Registry,23/11/2015,Waste Disposal,Fylde Office,Carillion Services Ltd,Large,1130939,255.56,Waste Disposal,Administration
Land Registry,Land Registry,23/11/2015,Waste Disposal,Gloucester Computer Centre,Carillion Services Ltd,Large,1130939,45.38,Waste Disposal,Administration
Land Registry,Land Registry,23/11/2015,Waste Disposal,Gloucester Office,Carillion Services Ltd,Large,1130939,247.47,Waste Disposal,Administration
Land Registry,Land Registry,23/11/2015,Waste Disposal,Governance & Policy,Carillion Services Ltd,Large,1130939,653.15,Waste Disposal,Administration
Land Registry,Land Registry,23/11/2015,Waste Disposal,Hull Office,Carillion Services Ltd,Large,1130939,186.68,Waste Disposal,Administration
Land Registry,Land Registry,23/11/2015,Waste Disposal,Leicester Office,Carillion Services Ltd,Large,1130939,270.03,Waste Disposal,Administration
Land Registry,Land Registry,23/11/2015,Waste Disposal,Nottingham Office,Carillion Services Ltd,Large,1130939,332.00,Waste Disposal,Administration
Land Registry,Land Registry,23/11/2015,Waste Disposal,Telford Office,Carillion Services Ltd,Large,1130939,238.79,Waste Disposal,Administration
Land Registry,Land Registry,23/11/2015,Waste Disposal,Wales Office,Carillion Services Ltd,Large,1130939,205.84,Waste Disposal,Administration
Land Registry,Land Registry,23/11/2015,Waste Disposal,Weymouth Office,Carillion Services Ltd,Large,1130939,169.72,Waste Disposal,Administration
Land Registry,Land Registry,23/11/2015,Waste Disposal,Dir: Finance,Carillion Services Ltd,Large,1130939,68.62,Waste Disposal,Administration
Land Registry,Land Registry,23/11/2015,Waste Disposal,Fylde Office,Carillion Services Ltd,Large,1130913,938.94,Waste Disposal,Administration
Land Registry,Land Registry,23/11/2015,Waste Disposal,Gloucester Computer Centre,Carillion Services Ltd,Large,1130913,799.81,Waste Disposal,Administration
Land Registry,Land Registry,23/11/2015,Waste Disposal,Gloucester Office,Carillion Services Ltd,Large,1130913,345.63,Waste Disposal,Administration
Land Registry,Land Registry,23/11/2015,Waste Disposal,Governance & Policy,Carillion Services Ltd,Large,1130913,396.41,Waste Disposal,Administration
Land Registry,Land Registry,23/11/2015,Waste Disposal,Hull Office,Carillion Services Ltd,Large,1130913,25.94,Waste Disposal,Administration
Land Registry,Land Registry,23/11/2015,Waste Disposal,Leicester Office,Carillion Services Ltd,Large,1130913,"1,540.80",Waste Disposal,Administration
Land Registry,Land Registry,23/11/2015,Waste Disposal,Nottingham Office,Carillion Services Ltd,Large,1130913,291.12,Waste Disposal,Administration
Land Registry,Land Registry,23/11/2015,Waste Disposal,Telford Office,Carillion Services Ltd,Large,1130913,181.56,Waste Disposal,Administration
Land Registry,Land Registry,23/11/2015,Waste Disposal,Wales Office,Carillion Services Ltd,Large,1130913,245.27,Waste Disposal,Administration
Land Registry,Land Registry,23/11/2015,Water,Birkenhead Office,Carillion Services Ltd,Large,1130912,"4,037.72",Water,Administration
Land Registry,Land Registry,23/11/2015,Water,Coventry Office,Carillion Services Ltd,Large,1130912,"1,934.09",Water,Administration
Land Registry,Land Registry,23/11/2015,Water,Croydon Office,Carillion Services Ltd,Large,1130912,"1,393.69",Water,Administration
Land Registry,Land Registry,23/11/2015,Water,Fylde Office,Carillion Services Ltd,Large,1130912,"3,674.36",Water,Administration
Land Registry,Land Registry,23/11/2015,Water,Gloucester Office,Carillion Services Ltd,Large,1130912,"1,002.98",Water,Administration
Land Registry,Land Registry,23/11/2015,Water,Hull Office,Carillion Services Ltd,Large,1130912,447.53,Water,Administration
Land Registry,Land Registry,23/11/2015,Water,Nottingham Office,Carillion Services Ltd,Large,1130912,"2,890.82",Water,Administration
Land Registry,Land Registry,23/11/2015,Water,Telford Office,Carillion Services Ltd,Large,1130912,"1,317.46",Water,Administration
Land Registry,Land Registry,23/11/2015,Water,Dir: Finance,Carillion Services Ltd,Large,1130912,"1,915.19",Water,Administration
Land Registry,Land Registry,19/11/2015,Computer Equipment Maintenance,IS Service Delivery,CGI IT UK Limited,Large,1130630,"24,051.05",Computer Equipment Maintenance,Administration
Land Registry,Land Registry,02/11/2015,Computer Equipment Hire,IS Service Delivery,CHG-MERIDIAN UK Limited,Large,1128861,"54,985.00",Computer Equipment Hire,Administration
Land Registry,Land Registry,02/11/2015,Finance Charges on Leases,IS Service Delivery,CHG-MERIDIAN UK Limited,Large,1128859,39.77,Finance Charges on Leases,Administration
Land Registry,Land Registry,02/11/2015,Finance Lease Obligatns < 1 yr,Balance Sheet,CHG-MERIDIAN UK Limited,Large,1128859,"31,525.45",Finance Lease Obligatns < 1 yr,Administration
Land Registry,Land Registry,27/11/2015,Rates Payable,Wales Office,City & County of Swansea,Large,1103652,"17,593.00",Rates Payable,Administration
Land Registry,Land Registry,27/11/2015,Rates Payable,Dir: HR,City of York Council,Large,1102255,"17,748.00",Rates Payable,Administration
Land Registry,Land Registry,11/11/2015,Computer Equipment Hire,IS Service Delivery,Computer Associates UK Limited,Large,1129643,382858.8,Computer Equipment Hire,Administration
Land Registry,Land Registry,27/11/2015,Rates Payable,Coventry Office,Coventry City Council,Large,1103644,"40,180.00",Rates Payable,Administration
Land Registry,Land Registry,02/11/2015,Rates Payable,Croydon Office,Croydon Council,Large,1102254,"29,241.00",Rates Payable,Administration
Land Registry,Land Registry,27/11/2015,Rates Payable,Durham Office,Durham County Council,Large,1103047,"28,594.00",Rates Payable,Administration
Land Registry,Land Registry,02/11/2015,Transport Fuel,Central Facilities Management Team,Enterprise Rent-A-Car (UK) Ltd,Large,1128552,"2,183.15",Transport Fuel,Administration
Land Registry,Land Registry,02/11/2015,Transport Hire of Cars and Vans,Central Facilities Management Team,Enterprise Rent-A-Car (UK) Ltd,Large,1128552,"26,109.53",Transport Hire of Cars and Vans,Administration
Land Registry,Land Registry,27/11/2015,Rates Payable,Fylde Office,Fylde Borough Council,Large,1101943,"15,488.00",Rates Payable,Administration
Land Registry,Land Registry,27/11/2015,Rates Payable,Gloucester Office,Gloucester City Council,Large,1103041,"24,201.00",Rates Payable,Administration
Land Registry,Land Registry,10/11/2015,Employment Agency Staff Costs,Dir: (Statutory) Digital Services,Kainos Software Ltd,Large,1129383,"42,048.00",Employment Agency Staff Costs,Administration
Land Registry,Land Registry,10/11/2015,Rates Payable,Hull Office,Kingston Upon Hull City Council,Large,1103201,"13,065.00",Rates Payable,Administration
Land Registry,Land Registry,27/11/2015,Rates Payable,Leicester Office,Leicester City Council,Large,1101944,"18,488.00",Rates Payable,Administration
Land Registry,Land Registry,23/11/2015,Computer Equipment Maintenance,IS Service Delivery,MicroStrategy Ltd,Large,1130920,56104.34,Computer Equipment Maintenance,Administration
Land Registry,Land Registry,27/11/2015,Rates Payable,Nottingham Office,Nottingham City Council,Large,1103651,"24,650.00",Rates Payable,Administration
Land Registry,Land Registry,10/11/2015,Ordnance Survey Surveys,Survey & Mapping Services,Ordnance Survey,Large,1128951,712630,Ordnance Survey Surveys,Administration
Land Registry,Land Registry,23/11/2015,Other External Training,Program: Local Land Charges,Oxford Said Business School Ltd,Large,1130928,25000,Other External Training,Administration
Land Registry,Land Registry,27/11/2015,Rates Payable,Peterborough Office,Peterborough City Council,Large,1102471,"11,093.00",Rates Payable,Administration
Land Registry,Land Registry,27/11/2015,Rates Payable,Governance & Policy,Plymouth City Council,Large,1101940,"36,975.00",Rates Payable,Administration
Land Registry,Land Registry,06/11/2015,Transport Insurance,Central Facilities Management Team,Portmore Insurance Brokers Ltd,SME,1129126,42924,Transport Insurance,Administration
Land Registry,Land Registry,04/11/2015,Consultancy Non-IT Advice Only,Finance Group,PriceWaterhouseCoopers LLP,Large,1128834,"158,146.00",Consultancy Non-IT Advice Only,Administration
Land Registry,Land Registry,03/11/2015,Travel & Subsistence General Duty,Birkenhead Office,Redfern Travel Ltd,SME,1128730,458.53,Travel & Subsistence General Duty,Administration
Land Registry,Land Registry,03/11/2015,Travel & Subsistence General Duty,Business Development,Redfern Travel Ltd,SME,1128730,623.73,Travel & Subsistence General Duty,Administration
Land Registry,Land Registry,03/11/2015,Travel & Subsistence General Duty,Central Facilities Management Team,Redfern Travel Ltd,SME,1128730,975.42,Travel & Subsistence General Duty,Administration
Land Registry,Land Registry,03/11/2015,Travel & Subsistence General Duty,Central Operations Group,Redfern Travel Ltd,SME,1128730,"1,259.65",Travel & Subsistence General Duty,Administration
Land Registry,Land Registry,03/11/2015,Travel & Subsistence General Duty,Chief Executives Office,Redfern Travel Ltd,SME,1128730,697.71,Travel & Subsistence General Duty,Administration
Land Registry,Land Registry,03/11/2015,Travel & Subsistence General Duty,Commercial & Customer Strategy & Performance,Redfern Travel Ltd,SME,1128730,695.24,Travel & Subsistence General Duty,Administration
Land Registry,Land Registry,03/11/2015,Travel & Subsistence General Duty,Commercial Director,Redfern Travel Ltd,SME,1128730,65.80,Travel & Subsistence General Duty,Administration
Land Registry,Land Registry,03/11/2015,Travel & Subsistence General Duty,Corp Procurement,Redfern Travel Ltd,SME,1128730,599.84,Travel & Subsistence General Duty,Administration
Land Registry,Land Registry,03/11/2015,Travel & Subsistence General Duty,Corporate Assurance,Redfern Travel Ltd,SME,1128730,"1,765.97",Travel & Subsistence General Duty,Administration
Land Registry,Land Registry,03/11/2015,Travel & Subsistence General Duty,Corporate Legal Services,Redfern Travel Ltd,SME,1128730,589.15,Travel & Subsistence General Duty,Administration
Land Registry,Land Registry,03/11/2015,Travel & Subsistence General Duty,Data Group,Redfern Travel Ltd,SME,1128730,697.66,Travel & Subsistence General Duty,Administration
Land Registry,Land Registry,03/11/2015,Travel & Subsistence General Duty,Dir: (Statutory) Digital Services,Redfern Travel Ltd,SME,1128730,802.25,Travel & Subsistence General Duty,Administration
Land Registry,Land Registry,03/11/2015,Travel & Subsistence General Duty,Dir: Operations,Redfern Travel Ltd,SME,1128730,549.95,Travel & Subsistence General Duty,Administration
Land Registry,Land Registry,03/11/2015,Travel & Subsistence General Duty,Director of Information Systems,Redfern Travel Ltd,SME,1128730,19.87,Travel & Subsistence General Duty,Administration
Land Registry,Land Registry,03/11/2015,Travel & Subsistence General Duty,Director of Legal Services,Redfern Travel Ltd,SME,1128730,875.36,Travel & Subsistence General Duty,Administration
Land Registry,Land Registry,03/11/2015,Travel & Subsistence General Duty,Director of Operations,Redfern Travel Ltd,SME,1128730,101.00,Travel & Subsistence General Duty,Administration
Land Registry,Land Registry,03/11/2015,Travel & Subsistence General Duty,Durham Office,Redfern Travel Ltd,SME,1128730,206.81,Travel & Subsistence General Duty,Administration
Land Registry,Land Registry,03/11/2015,Travel & Subsistence General Duty,Finance Director,Redfern Travel Ltd,SME,1128730,265.41,Travel & Subsistence General Duty,Administration
Land Registry,Land Registry,03/11/2015,Travel & Subsistence General Duty,Finance Group,Redfern Travel Ltd,SME,1128730,172.43,Travel & Subsistence General Duty,Administration
Land Registry,Land Registry,03/11/2015,Travel & Subsistence General Duty,Fylde Office,Redfern Travel Ltd,SME,1128730,857.07,Travel & Subsistence General Duty,Administration
Land Registry,Land Registry,03/11/2015,Travel & Subsistence General Duty,HR,Redfern Travel Ltd,SME,1128730,122.81,Travel & Subsistence General Duty,Administration
Land Registry,Land Registry,03/11/2015,Travel & Subsistence General Duty,HR Group,Redfern Travel Ltd,SME,1128730,"2,748.17",Travel & Subsistence General Duty,Administration
Land Registry,Land Registry,03/11/2015,Travel & Subsistence General Duty,HR Operations,Redfern Travel Ltd,SME,1128730,56.95,Travel & Subsistence General Duty,Administration
Land Registry,Land Registry,03/11/2015,Travel & Subsistence General Duty,Internal Solutions Group,Redfern Travel Ltd,SME,1128730,498.21,Travel & Subsistence General Duty,Administration
Land Registry,Land Registry,03/11/2015,Travel & Subsistence General Duty,International Unit,Redfern Travel Ltd,SME,1128730,149.06,Travel & Subsistence General Duty,Administration
Land Registry,Land Registry,03/11/2015,Travel & Subsistence General Duty,IS Service Delivery,Redfern Travel Ltd,SME,1128730,"1,445.54",Travel & Subsistence General Duty,Administration
Land Registry,Land Registry,03/11/2015,Travel & Subsistence General Duty,Leicester Office,Redfern Travel Ltd,SME,1128730,29.70,Travel & Subsistence General Duty,Administration
Land Registry,Land Registry,03/11/2015,Travel & Subsistence General Duty,Local Land Charges,Redfern Travel Ltd,SME,1128730,"3,756.39",Travel & Subsistence General Duty,Administration
Land Registry,Land Registry,03/11/2015,Travel & Subsistence General Duty,Local Lawyer Group,Redfern Travel Ltd,SME,1128730,"1,130.91",Travel & Subsistence General Duty,Administration
Land Registry,Land Registry,03/11/2015,Travel & Subsistence General Duty,LR Board & Board Chair,Redfern Travel Ltd,SME,1128730,86.92,Travel & Subsistence General Duty,Administration
Land Registry,Land Registry,03/11/2015,Travel & Subsistence General Duty,LR Connect Portfolio,Redfern Travel Ltd,SME,1128730,"1,347.33",Travel & Subsistence General Duty,Administration
Land Registry,Land Registry,03/11/2015,Travel & Subsistence General Duty,Marketing Services Team,Redfern Travel Ltd,SME,1128730,110.47,Travel & Subsistence General Duty,Administration
Land Registry,Land Registry,03/11/2015,Travel & Subsistence General Duty,Nottingham Office,Redfern Travel Ltd,SME,1128730,170.35,Travel & Subsistence General Duty,Administration
Land Registry,Land Registry,03/11/2015,Travel & Subsistence General Duty,Organisation & Employee Development,Redfern Travel Ltd,SME,1128730,391.04,Travel & Subsistence General Duty,Administration
Land Registry,Land Registry,03/11/2015,Travel & Subsistence General Duty,Product Development & Management,Redfern Travel Ltd,SME,1128730,110.57,Travel & Subsistence General Duty,Administration
Land Registry,Land Registry,03/11/2015,Travel & Subsistence General Duty,Prog: Digital by Default,Redfern Travel Ltd,SME,1128730,494.76,Travel & Subsistence General Duty,Administration
Land Registry,Land Registry,03/11/2015,Travel & Subsistence General Duty,Prog: e-Enablement,Redfern Travel Ltd,SME,1128730,78.05,Travel & Subsistence General Duty,Administration
Land Registry,Land Registry,03/11/2015,Travel & Subsistence General Duty,Program: Local Land Charges,Redfern Travel Ltd,SME,1128730,"2,353.56",Travel & Subsistence General Duty,Administration
Land Registry,Land Registry,03/11/2015,Travel & Subsistence General Duty,Property Asset Management Group,Redfern Travel Ltd,SME,1128730,512.23,Travel & Subsistence General Duty,Administration
Land Registry,Land Registry,03/11/2015,Travel & Subsistence General Duty,Research & Data Mining,Redfern Travel Ltd,SME,1128730,231.30,Travel & Subsistence General Duty,Administration
Land Registry,Land Registry,03/11/2015,Travel & Subsistence General Duty,Technology Group,Redfern Travel Ltd,SME,1128730,143.99,Travel & Subsistence General Duty,Administration
Land Registry,Land Registry,03/11/2015,Travel & Subsistence General Duty,Wales Office,Redfern Travel Ltd,SME,1128730,218.52,Travel & Subsistence General Duty,Administration
Land Registry,Land Registry,03/11/2015,Travel & Subsistence General Duty,Survey & Mapping Services,Redfern Travel Ltd,SME,1128730,61.73,Travel & Subsistence General Duty,Administration
Land Registry,Land Registry,03/11/2015,Travel & Subsistence General Duty,National Lawyer Training,Redfern Travel Ltd,SME,1128730,170.12,Travel & Subsistence General Duty,Administration
Land Registry,Land Registry,09/11/2015,Travel & Subsistence General Duty,Business Development,Redfern Travel Ltd,SME,1129463,459.55,Travel & Subsistence General Duty,Administration
Land Registry,Land Registry,09/11/2015,Travel & Subsistence General Duty,Central Facilities Management Team,Redfern Travel Ltd,SME,1129463,"1,443.96",Travel & Subsistence General Duty,Administration
Land Registry,Land Registry,09/11/2015,Travel & Subsistence General Duty,Central Operations Group,Redfern Travel Ltd,SME,1129463,"2,421.51",Travel & Subsistence General Duty,Administration
Land Registry,Land Registry,09/11/2015,Travel & Subsistence General Duty,Chief Executives Office,Redfern Travel Ltd,SME,1129463,877.65,Travel & Subsistence General Duty,Administration
Land Registry,Land Registry,09/11/2015,Travel & Subsistence General Duty,Commercial & Customer Strategy & Performance,Redfern Travel Ltd,SME,1129463,653.17,Travel & Subsistence General Duty,Administration
Land Registry,Land Registry,09/11/2015,Travel & Subsistence General Duty,Commercial Director,Redfern Travel Ltd,SME,1129463,180.72,Travel & Subsistence General Duty,Administration
Land Registry,Land Registry,09/11/2015,Travel & Subsistence General Duty,Corp Procurement,Redfern Travel Ltd,SME,1129463,603.14,Travel & Subsistence General Duty,Administration
Land Registry,Land Registry,09/11/2015,Travel & Subsistence General Duty,Corporate Assurance,Redfern Travel Ltd,SME,1129463,235.39,Travel & Subsistence General Duty,Administration
Land Registry,Land Registry,09/11/2015,Travel & Subsistence General Duty,Corporate Legal Services,Redfern Travel Ltd,SME,1129463,136.11,Travel & Subsistence General Duty,Administration
Land Registry,Land Registry,09/11/2015,Travel & Subsistence General Duty,Croydon Office,Redfern Travel Ltd,SME,1129463,509.11,Travel & Subsistence General Duty,Administration
Land Registry,Land Registry,09/11/2015,Travel & Subsistence General Duty,Data Group,Redfern Travel Ltd,SME,1129463,647.27,Travel & Subsistence General Duty,Administration
Land Registry,Land Registry,09/11/2015,Travel & Subsistence General Duty,Dir: (Statutory) Digital Services,Redfern Travel Ltd,SME,1129463,"1,602.14",Travel & Subsistence General Duty,Administration
Land Registry,Land Registry,09/11/2015,Travel & Subsistence General Duty,Dir: Operations,Redfern Travel Ltd,SME,1129463,"2,476.33",Travel & Subsistence General Duty,Administration
Land Registry,Land Registry,09/11/2015,Travel & Subsistence General Duty,Director of Information Systems,Redfern Travel Ltd,SME,1129463,683.87,Travel & Subsistence General Duty,Administration
Land Registry,Land Registry,09/11/2015,Travel & Subsistence General Duty,Director of Legal Services,Redfern Travel Ltd,SME,1129463,462.88,Travel & Subsistence General Duty,Administration
Land Registry,Land Registry,09/11/2015,Travel & Subsistence General Duty,Durham Office,Redfern Travel Ltd,SME,1129463,304.77,Travel & Subsistence General Duty,Administration
Land Registry,Land Registry,09/11/2015,Travel & Subsistence General Duty,Finance Director,Redfern Travel Ltd,SME,1129463,452.27,Travel & Subsistence General Duty,Administration
Land Registry,Land Registry,09/11/2015,Travel & Subsistence General Duty,Finance Group,Redfern Travel Ltd,SME,1129463,589.74,Travel & Subsistence General Duty,Administration
Land Registry,Land Registry,09/11/2015,Travel & Subsistence General Duty,Forward Scanning,Redfern Travel Ltd,SME,1129463,107.61,Travel & Subsistence General Duty,Administration
Land Registry,Land Registry,09/11/2015,Travel & Subsistence General Duty,Fylde Office,Redfern Travel Ltd,SME,1129463,79.22,Travel & Subsistence General Duty,Administration
Land Registry,Land Registry,09/11/2015,Travel & Subsistence General Duty,Governance & Policy,Redfern Travel Ltd,SME,1129463,97.94,Travel & Subsistence General Duty,Administration
Land Registry,Land Registry,09/11/2015,Travel & Subsistence General Duty,Guarantee & Litigation,Redfern Travel Ltd,SME,1129463,115.80,Travel & Subsistence General Duty,Administration
Land Registry,Land Registry,09/11/2015,Travel & Subsistence General Duty,HR,Redfern Travel Ltd,SME,1129463,220.83,Travel & Subsistence General Duty,Administration
Land Registry,Land Registry,09/11/2015,Travel & Subsistence General Duty,HR Group,Redfern Travel Ltd,SME,1129463,"4,023.36",Travel & Subsistence General Duty,Administration
Land Registry,Land Registry,09/11/2015,Travel & Subsistence General Duty,HR Operations,Redfern Travel Ltd,SME,1129463,73.93,Travel & Subsistence General Duty,Administration
Land Registry,Land Registry,09/11/2015,Travel & Subsistence General Duty,Hull Office,Redfern Travel Ltd,SME,1129463,55.18,Travel & Subsistence General Duty,Administration
Land Registry,Land Registry,09/11/2015,Travel & Subsistence General Duty,Internal Solutions Group,Redfern Travel Ltd,SME,1129463,720.86,Travel & Subsistence General Duty,Administration
Land Registry,Land Registry,09/11/2015,Travel & Subsistence General Duty,International Unit,Redfern Travel Ltd,SME,1129463,458.67,Travel & Subsistence General Duty,Administration
Land Registry,Land Registry,09/11/2015,Travel & Subsistence General Duty,IS Service Delivery,Redfern Travel Ltd,SME,1129463,"2,152.50",Travel & Subsistence General Duty,Administration
Land Registry,Land Registry,09/11/2015,Travel & Subsistence General Duty,Leicester Office,Redfern Travel Ltd,SME,1129463,202.64,Travel & Subsistence General Duty,Administration
Land Registry,Land Registry,09/11/2015,Travel & Subsistence General Duty,Local Land Charges,Redfern Travel Ltd,SME,1129463,"4,399.50",Travel & Subsistence General Duty,Administration
Land Registry,Land Registry,09/11/2015,Travel & Subsistence General Duty,Local Lawyer Group,Redfern Travel Ltd,SME,1129463,"4,677.82",Travel & Subsistence General Duty,Administration
Land Registry,Land Registry,09/11/2015,Travel & Subsistence General Duty,LR Connect Portfolio,Redfern Travel Ltd,SME,1129463,"1,272.77",Travel & Subsistence General Duty,Administration
Land Registry,Land Registry,09/11/2015,Travel & Subsistence General Duty,Marketing Services Team,Redfern Travel Ltd,SME,1129463,124.15,Travel & Subsistence General Duty,Administration
Land Registry,Land Registry,09/11/2015,Travel & Subsistence General Duty,Nottingham Office,Redfern Travel Ltd,SME,1129463,79.23,Travel & Subsistence General Duty,Administration
Land Registry,Land Registry,09/11/2015,Travel & Subsistence General Duty,Organisation & Employee Development,Redfern Travel Ltd,SME,1129463,56.72,Travel & Subsistence General Duty,Administration
Land Registry,Land Registry,09/11/2015,Travel & Subsistence General Duty,Peterborough Office,Redfern Travel Ltd,SME,1129463,356.24,Travel & Subsistence General Duty,Administration
Land Registry,Land Registry,09/11/2015,Travel & Subsistence General Duty,Product Development & Management,Redfern Travel Ltd,SME,1129463,571.34,Travel & Subsistence General Duty,Administration
Land Registry,Land Registry,09/11/2015,Travel & Subsistence General Duty,Prog: Digital by Default,Redfern Travel Ltd,SME,1129463,310.04,Travel & Subsistence General Duty,Administration
Land Registry,Land Registry,09/11/2015,Travel & Subsistence General Duty,Prog: e-Enablement,Redfern Travel Ltd,SME,1129463,198.99,Travel & Subsistence General Duty,Administration
Land Registry,Land Registry,09/11/2015,Travel & Subsistence General Duty,Program: Local Land Charges,Redfern Travel Ltd,SME,1129463,"2,527.39",Travel & Subsistence General Duty,Administration
Land Registry,Land Registry,09/11/2015,Travel & Subsistence General Duty,Projects and Programme Centre,Redfern Travel Ltd,SME,1129463,49.80,Travel & Subsistence General Duty,Administration
Land Registry,Land Registry,09/11/2015,Travel & Subsistence General Duty,Property Asset Management Group,Redfern Travel Ltd,SME,1129463,"1,001.83",Travel & Subsistence General Duty,Administration
Land Registry,Land Registry,09/11/2015,Travel & Subsistence General Duty,Research & Data Mining,Redfern Travel Ltd,SME,1129463,663.96,Travel & Subsistence General Duty,Administration
Land Registry,Land Registry,09/11/2015,Travel & Subsistence General Duty,Technology Group,Redfern Travel Ltd,SME,1129463,209.45,Travel & Subsistence General Duty,Administration
Land Registry,Land Registry,09/11/2015,Travel & Subsistence General Duty,Telford Office,Redfern Travel Ltd,SME,1129463,287.39,Travel & Subsistence General Duty,Administration
Land Registry,Land Registry,09/11/2015,Travel & Subsistence General Duty,Wales Office,Redfern Travel Ltd,SME,1129463,188.91,Travel & Subsistence General Duty,Administration
Land Registry,Land Registry,09/11/2015,Travel & Subsistence General Duty,Survey & Mapping Services,Redfern Travel Ltd,SME,1129463,1.41,Travel & Subsistence General Duty,Administration
Land Registry,Land Registry,09/11/2015,Travel & Subsistence General Duty,National Lawyer Training,Redfern Travel Ltd,SME,1129463,83.52,Travel & Subsistence General Duty,Administration
Land Registry,Land Registry,09/11/2015,Travel & Subsistence General Duty,LR Sports Council,Redfern Travel Ltd,SME,1129463,38.08,Travel & Subsistence General Duty,Administration
Land Registry,Land Registry,09/11/2015,Travel & Subsistence General Duty,Independent Complaints Reviewer,Redfern Travel Ltd,SME,1129463,84.29,Travel & Subsistence General Duty,Administration
Land Registry,Land Registry,23/11/2015,Travel & Subsistence General Duty,Birkenhead Office,Redfern Travel Ltd,SME,1131068,454.63,Travel & Subsistence General Duty,Administration
Land Registry,Land Registry,23/11/2015,Travel & Subsistence General Duty,Business Development,Redfern Travel Ltd,SME,1131068,917.94,Travel & Subsistence General Duty,Administration
Land Registry,Land Registry,23/11/2015,Travel & Subsistence General Duty,Central Facilities Management Team,Redfern Travel Ltd,SME,1131068,"1,198.07",Travel & Subsistence General Duty,Administration
Land Registry,Land Registry,23/11/2015,Travel & Subsistence General Duty,Central Operations Group,Redfern Travel Ltd,SME,1131068,"2,938.09",Travel & Subsistence General Duty,Administration
Land Registry,Land Registry,23/11/2015,Travel & Subsistence General Duty,Chief Executives Office,Redfern Travel Ltd,SME,1131068,"1,479.01",Travel & Subsistence General Duty,Administration
Land Registry,Land Registry,23/11/2015,Travel & Subsistence General Duty,Commercial & Customer Strategy & Performance,Redfern Travel Ltd,SME,1131068,301.94,Travel & Subsistence General Duty,Administration
Land Registry,Land Registry,23/11/2015,Travel & Subsistence General Duty,Commercial Director,Redfern Travel Ltd,SME,1131068,80.88,Travel & Subsistence General Duty,Administration
Land Registry,Land Registry,23/11/2015,Travel & Subsistence General Duty,Corp Procurement,Redfern Travel Ltd,SME,1131068,637.65,Travel & Subsistence General Duty,Administration
Land Registry,Land Registry,23/11/2015,Travel & Subsistence General Duty,Corporate Assurance,Redfern Travel Ltd,SME,1131068,951.09,Travel & Subsistence General Duty,Administration
Land Registry,Land Registry,23/11/2015,Travel & Subsistence General Duty,Corporate Legal Services,Redfern Travel Ltd,SME,1131068,747.08,Travel & Subsistence General Duty,Administration
Land Registry,Land Registry,23/11/2015,Travel & Subsistence General Duty,Coventry Office,Redfern Travel Ltd,SME,1131068,57.65,Travel & Subsistence General Duty,Administration
Land Registry,Land Registry,23/11/2015,Travel & Subsistence General Duty,Croydon Office,Redfern Travel Ltd,SME,1131068,339.43,Travel & Subsistence General Duty,Administration
Land Registry,Land Registry,23/11/2015,Travel & Subsistence General Duty,Data Group,Redfern Travel Ltd,SME,1131068,231.55,Travel & Subsistence General Duty,Administration
Land Registry,Land Registry,23/11/2015,Travel & Subsistence General Duty,Dir: (Statutory) Digital Services,Redfern Travel Ltd,SME,1131068,"1,159.42",Travel & Subsistence General Duty,Administration
Land Registry,Land Registry,23/11/2015,Travel & Subsistence General Duty,Dir: Operations,Redfern Travel Ltd,SME,1131068,"1,257.58",Travel & Subsistence General Duty,Administration
Land Registry,Land Registry,23/11/2015,Travel & Subsistence General Duty,Director of Information Systems,Redfern Travel Ltd,SME,1131068,759.41,Travel & Subsistence General Duty,Administration
Land Registry,Land Registry,23/11/2015,Travel & Subsistence General Duty,Director of Legal Services,Redfern Travel Ltd,SME,1131068,144.57,Travel & Subsistence General Duty,Administration
Land Registry,Land Registry,23/11/2015,Travel & Subsistence General Duty,Director of Operations,Redfern Travel Ltd,SME,1131068,185.86,Travel & Subsistence General Duty,Administration
Land Registry,Land Registry,23/11/2015,Travel & Subsistence General Duty,Durham Office,Redfern Travel Ltd,SME,1131068,394.81,Travel & Subsistence General Duty,Administration
Land Registry,Land Registry,23/11/2015,Travel & Subsistence General Duty,Finance Director,Redfern Travel Ltd,SME,1131068,233.44,Travel & Subsistence General Duty,Administration
Land Registry,Land Registry,23/11/2015,Travel & Subsistence General Duty,Finance Group,Redfern Travel Ltd,SME,1131068,636.72,Travel & Subsistence General Duty,Administration
Land Registry,Land Registry,23/11/2015,Travel & Subsistence General Duty,Forward Scanning,Redfern Travel Ltd,SME,1131068,107.61,Travel & Subsistence General Duty,Administration
Land Registry,Land Registry,23/11/2015,Travel & Subsistence General Duty,Fylde Office,Redfern Travel Ltd,SME,1131068,21.45,Travel & Subsistence General Duty,Administration
Land Registry,Land Registry,23/11/2015,Travel & Subsistence General Duty,Gloucester Office,Redfern Travel Ltd,SME,1131068,113.24,Travel & Subsistence General Duty,Administration
Land Registry,Land Registry,23/11/2015,Travel & Subsistence General Duty,Guarantee & Litigation,Redfern Travel Ltd,SME,1131068,255.87,Travel & Subsistence General Duty,Administration
Land Registry,Land Registry,23/11/2015,Travel & Subsistence General Duty,HR,Redfern Travel Ltd,SME,1131068,1.41,Travel & Subsistence General Duty,Administration
Land Registry,Land Registry,23/11/2015,Travel & Subsistence General Duty,HR Group,Redfern Travel Ltd,SME,1131068,"3,403.79",Travel & Subsistence General Duty,Administration
Land Registry,Land Registry,23/11/2015,Travel & Subsistence General Duty,Hull Office,Redfern Travel Ltd,SME,1131068,430.64,Travel & Subsistence General Duty,Administration
Land Registry,Land Registry,23/11/2015,Travel & Subsistence General Duty,Internal Solutions Group,Redfern Travel Ltd,SME,1131068,787.96,Travel & Subsistence General Duty,Administration
Land Registry,Land Registry,23/11/2015,Travel & Subsistence General Duty,International Unit,Redfern Travel Ltd,SME,1131068,726.83,Travel & Subsistence General Duty,Administration
Land Registry,Land Registry,23/11/2015,Travel & Subsistence General Duty,IS Service Delivery,Redfern Travel Ltd,SME,1131068,"2,129.22",Travel & Subsistence General Duty,Administration
Land Registry,Land Registry,23/11/2015,Travel & Subsistence General Duty,Leicester Office,Redfern Travel Ltd,SME,1131068,14.85,Travel & Subsistence General Duty,Administration
Land Registry,Land Registry,23/11/2015,Travel & Subsistence General Duty,Local Land Charges,Redfern Travel Ltd,SME,1131068,"4,904.27",Travel & Subsistence General Duty,Administration
Land Registry,Land Registry,23/11/2015,Travel & Subsistence General Duty,Local Lawyer Group,Redfern Travel Ltd,SME,1131068,894.27,Travel & Subsistence General Duty,Administration
Land Registry,Land Registry,23/11/2015,Travel & Subsistence General Duty,LR Board & Board Chair,Redfern Travel Ltd,SME,1131068,182.24,Travel & Subsistence General Duty,Administration
Land Registry,Land Registry,23/11/2015,Travel & Subsistence General Duty,LR Connect Portfolio,Redfern Travel Ltd,SME,1131068,909.52,Travel & Subsistence General Duty,Administration
Land Registry,Land Registry,23/11/2015,Travel & Subsistence General Duty,Marketing Services Team,Redfern Travel Ltd,SME,1131068,103.59,Travel & Subsistence General Duty,Administration
Land Registry,Land Registry,23/11/2015,Travel & Subsistence General Duty,Organisation & Employee Development,Redfern Travel Ltd,SME,1131068,329.68,Travel & Subsistence General Duty,Administration
Land Registry,Land Registry,23/11/2015,Travel & Subsistence General Duty,Peterborough Office,Redfern Travel Ltd,SME,1131068,123.50,Travel & Subsistence General Duty,Administration
Land Registry,Land Registry,23/11/2015,Travel & Subsistence General Duty,Plymouth Office,Redfern Travel Ltd,SME,1131068,164.76,Travel & Subsistence General Duty,Administration
Land Registry,Land Registry,23/11/2015,Travel & Subsistence General Duty,Product Development & Management,Redfern Travel Ltd,SME,1131068,641.62,Travel & Subsistence General Duty,Administration
Land Registry,Land Registry,23/11/2015,Travel & Subsistence General Duty,Prog: Digital by Default,Redfern Travel Ltd,SME,1131068,723.78,Travel & Subsistence General Duty,Administration
Land Registry,Land Registry,23/11/2015,Travel & Subsistence General Duty,Prog: e-Enablement,Redfern Travel Ltd,SME,1131068,800.59,Travel & Subsistence General Duty,Administration
Land Registry,Land Registry,23/11/2015,Travel & Subsistence General Duty,Prog: IT Foundations,Redfern Travel Ltd,SME,1131068,65.80,Travel & Subsistence General Duty,Administration
Land Registry,Land Registry,23/11/2015,Travel & Subsistence General Duty,Program: Local Land Charges,Redfern Travel Ltd,SME,1131068,"1,992.54",Travel & Subsistence General Duty,Administration
Land Registry,Land Registry,23/11/2015,Travel & Subsistence General Duty,Projects and Programme Centre,Redfern Travel Ltd,SME,1131068,93.01,Travel & Subsistence General Duty,Administration
Land Registry,Land Registry,23/11/2015,Travel & Subsistence General Duty,Property Asset Management Group,Redfern Travel Ltd,SME,1131068,"1,332.11",Travel & Subsistence General Duty,Administration
Land Registry,Land Registry,23/11/2015,Travel & Subsistence General Duty,Registration Legal Services Group,Redfern Travel Ltd,SME,1131068,195.94,Travel & Subsistence General Duty,Administration
Land Registry,Land Registry,23/11/2015,Travel & Subsistence General Duty,Research & Data Mining,Redfern Travel Ltd,SME,1131068,720.68,Travel & Subsistence General Duty,Administration
Land Registry,Land Registry,23/11/2015,Travel & Subsistence General Duty,Strategy Team,Redfern Travel Ltd,SME,1131068,80.12,Travel & Subsistence General Duty,Administration
Land Registry,Land Registry,23/11/2015,Travel & Subsistence General Duty,Technology Group,Redfern Travel Ltd,SME,1131068,189.68,Travel & Subsistence General Duty,Administration
Land Registry,Land Registry,23/11/2015,Travel & Subsistence General Duty,Wales Office,Redfern Travel Ltd,SME,1131068,430.72,Travel & Subsistence General Duty,Administration
Land Registry,Land Registry,23/11/2015,Travel & Subsistence General Duty,HMLR.Dir: Strategy,Redfern Travel Ltd,SME,1131068,196.28,Travel & Subsistence General Duty,Administration
Land Registry,Land Registry,24/11/2015,Travel & Subsistence General Duty,Birkenhead Office,Redfern Travel Ltd,SME,1131228,20.03,Travel & Subsistence General Duty,Administration
Land Registry,Land Registry,24/11/2015,Travel & Subsistence General Duty,Business Development,Redfern Travel Ltd,SME,1131228,441.07,Travel & Subsistence General Duty,Administration
Land Registry,Land Registry,24/11/2015,Travel & Subsistence General Duty,Central Facilities Management Team,Redfern Travel Ltd,SME,1131228,913.16,Travel & Subsistence General Duty,Administration
Land Registry,Land Registry,24/11/2015,Travel & Subsistence General Duty,Central Operations Group,Redfern Travel Ltd,SME,1131228,"2,513.44",Travel & Subsistence General Duty,Administration
Land Registry,Land Registry,24/11/2015,Travel & Subsistence General Duty,Chief Executives Office,Redfern Travel Ltd,SME,1131228,"1,018.01",Travel & Subsistence General Duty,Administration
Land Registry,Land Registry,24/11/2015,Travel & Subsistence General Duty,Commercial & Customer Strategy & Performance,Redfern Travel Ltd,SME,1131228,139.96,Travel & Subsistence General Duty,Administration
Land Registry,Land Registry,24/11/2015,Travel & Subsistence General Duty,Commercial Director,Redfern Travel Ltd,SME,1131228,88.92,Travel & Subsistence General Duty,Administration
Land Registry,Land Registry,24/11/2015,Travel & Subsistence General Duty,Corp Procurement,Redfern Travel Ltd,SME,1131228,245.32,Travel & Subsistence General Duty,Administration
Land Registry,Land Registry,24/11/2015,Travel & Subsistence General Duty,Corporate Assurance,Redfern Travel Ltd,SME,1131228,525.24,Travel & Subsistence General Duty,Administration
Land Registry,Land Registry,24/11/2015,Travel & Subsistence General Duty,Corporate Legal Services,Redfern Travel Ltd,SME,1131228,132.54,Travel & Subsistence General Duty,Administration
Land Registry,Land Registry,24/11/2015,Travel & Subsistence General Duty,Croydon Office,Redfern Travel Ltd,SME,1131228,42.60,Travel & Subsistence General Duty,Administration
Land Registry,Land Registry,24/11/2015,Travel & Subsistence General Duty,Data Group,Redfern Travel Ltd,SME,1131228,200.13,Travel & Subsistence General Duty,Administration
Land Registry,Land Registry,24/11/2015,Travel & Subsistence General Duty,Dir: (Statutory) Digital Services,Redfern Travel Ltd,SME,1131228,"1,384.99",Travel & Subsistence General Duty,Administration
Land Registry,Land Registry,24/11/2015,Travel & Subsistence General Duty,Dir: Operations,Redfern Travel Ltd,SME,1131228,781.21,Travel & Subsistence General Duty,Administration
Land Registry,Land Registry,24/11/2015,Travel & Subsistence General Duty,Director of Information Systems,Redfern Travel Ltd,SME,1131228,802.11,Travel & Subsistence General Duty,Administration
Land Registry,Land Registry,24/11/2015,Travel & Subsistence General Duty,Director of Legal Services,Redfern Travel Ltd,SME,1131228,1.41,Travel & Subsistence General Duty,Administration
Land Registry,Land Registry,24/11/2015,Travel & Subsistence General Duty,Director of Operations,Redfern Travel Ltd,SME,1131228,86.92,Travel & Subsistence General Duty,Administration
Land Registry,Land Registry,24/11/2015,Travel & Subsistence General Duty,Durham Office,Redfern Travel Ltd,SME,1131228,277.68,Travel & Subsistence General Duty,Administration
Land Registry,Land Registry,24/11/2015,Travel & Subsistence General Duty,Finance Director,Redfern Travel Ltd,SME,1131228,-99.27,Travel & Subsistence General Duty,Administration
Land Registry,Land Registry,24/11/2015,Travel & Subsistence General Duty,Finance Group,Redfern Travel Ltd,SME,1131228,128.25,Travel & Subsistence General Duty,Administration
Land Registry,Land Registry,24/11/2015,Travel & Subsistence General Duty,Governance & Policy,Redfern Travel Ltd,SME,1131228,-96.53,Travel & Subsistence General Duty,Administration
Land Registry,Land Registry,24/11/2015,Travel & Subsistence General Duty,Guarantee & Litigation,Redfern Travel Ltd,SME,1131228,315.83,Travel & Subsistence General Duty,Administration
Land Registry,Land Registry,24/11/2015,Travel & Subsistence General Duty,HR Group,Redfern Travel Ltd,SME,1131228,5928.86,Travel & Subsistence General Duty,Administration
Land Registry,Land Registry,24/11/2015,Travel & Subsistence General Duty,Hull Office,Redfern Travel Ltd,SME,1131228,241.56,Travel & Subsistence General Duty,Administration
Land Registry,Land Registry,24/11/2015,Travel & Subsistence General Duty,Internal Solutions Group,Redfern Travel Ltd,SME,1131228,632.81,Travel & Subsistence General Duty,Administration
Land Registry,Land Registry,24/11/2015,Travel & Subsistence General Duty,International Unit,Redfern Travel Ltd,SME,1131228,776.84,Travel & Subsistence General Duty,Administration
Land Registry,Land Registry,24/11/2015,Travel & Subsistence General Duty,IS Service Delivery,Redfern Travel Ltd,SME,1131228,1899.21,Travel & Subsistence General Duty,Administration
Land Registry,Land Registry,24/11/2015,Travel & Subsistence General Duty,Land Charges,Redfern Travel Ltd,SME,1131228,133.45,Travel & Subsistence General Duty,Administration
Land Registry,Land Registry,24/11/2015,Travel & Subsistence General Duty,Leicester Office,Redfern Travel Ltd,SME,1131228,142.57,Travel & Subsistence General Duty,Administration
Land Registry,Land Registry,24/11/2015,Travel & Subsistence General Duty,Local Land Charges,Redfern Travel Ltd,SME,1131228,2100.84,Travel & Subsistence General Duty,Administration
Land Registry,Land Registry,24/11/2015,Travel & Subsistence General Duty,Local Lawyer Group,Redfern Travel Ltd,SME,1131228,1511.33,Travel & Subsistence General Duty,Administration
Land Registry,Land Registry,24/11/2015,Travel & Subsistence General Duty,LR Board & Board Chair,Redfern Travel Ltd,SME,1131228,98.35,Travel & Subsistence General Duty,Administration
Land Registry,Land Registry,24/11/2015,Travel & Subsistence General Duty,LR Connect Portfolio,Redfern Travel Ltd,SME,1131228,1779.46,Travel & Subsistence General Duty,Administration
Land Registry,Land Registry,24/11/2015,Travel & Subsistence General Duty,Organisation & Employee Development,Redfern Travel Ltd,SME,1131228,174.45,Travel & Subsistence General Duty,Administration
Land Registry,Land Registry,24/11/2015,Travel & Subsistence General Duty,Peterborough Office,Redfern Travel Ltd,SME,1131228,248.13,Travel & Subsistence General Duty,Administration
Land Registry,Land Registry,24/11/2015,Travel & Subsistence General Duty,Product Development & Management,Redfern Travel Ltd,SME,1131228,352.33,Travel & Subsistence General Duty,Administration
Land Registry,Land Registry,24/11/2015,Travel & Subsistence General Duty,Prog: Digital by Default,Redfern Travel Ltd,SME,1131228,216.37,Travel & Subsistence General Duty,Administration
Land Registry,Land Registry,24/11/2015,Travel & Subsistence General Duty,Program: Local Land Charges,Redfern Travel Ltd,SME,1131228,1449.5,Travel & Subsistence General Duty,Administration
Land Registry,Land Registry,24/11/2015,Travel & Subsistence General Duty,Property Asset Management Group,Redfern Travel Ltd,SME,1131228,838.18,Travel & Subsistence General Duty,Administration
Land Registry,Land Registry,24/11/2015,Travel & Subsistence General Duty,Registration Legal Services Group,Redfern Travel Ltd,SME,1131228,103.41,Travel & Subsistence General Duty,Administration
Land Registry,Land Registry,24/11/2015,Travel & Subsistence General Duty,Research & Data Mining,Redfern Travel Ltd,SME,1131228,205.2,Travel & Subsistence General Duty,Administration
Land Registry,Land Registry,24/11/2015,Travel & Subsistence General Duty,Strategy Team,Redfern Travel Ltd,SME,1131228,347.49,Travel & Subsistence General Duty,Administration
Land Registry,Land Registry,24/11/2015,Travel & Subsistence General Duty,Technology Group,Redfern Travel Ltd,SME,1131228,137.05,Travel & Subsistence General Duty,Administration
Land Registry,Land Registry,24/11/2015,Travel & Subsistence General Duty,Telford Office,Redfern Travel Ltd,SME,1131228,184.52,Travel & Subsistence General Duty,Administration
Land Registry,Land Registry,24/11/2015,Travel & Subsistence General Duty,Dir: Finance,Redfern Travel Ltd,SME,1131228,56.53,Travel & Subsistence General Duty,Administration
Land Registry,Land Registry,24/11/2015,Travel & Subsistence General Duty,LR Sports Council,Redfern Travel Ltd,SME,1131228,76.78,Travel & Subsistence General Duty,Administration
Land Registry,Land Registry,20/11/2015,Letter Post,Birkenhead Office,Royal Mail,Large,1130915,1957.81,Letter Post,Administration
Land Registry,Land Registry,20/11/2015,Letter Post,Central Facilities Management Team,Royal Mail,Large,1130915,0.74,Letter Post,Administration
Land Registry,Land Registry,20/11/2015,Letter Post,Coventry Office,Royal Mail,Large,1130915,6946.94,Letter Post,Administration
Land Registry,Land Registry,20/11/2015,Letter Post,Croydon Office,Royal Mail,Large,1130915,2639.66,Letter Post,Administration
Land Registry,Land Registry,20/11/2015,Letter Post,Durham Office,Royal Mail,Large,1130915,5987.16,Letter Post,Administration
Land Registry,Land Registry,20/11/2015,Letter Post,Fylde Office,Royal Mail,Large,1130915,3129.47,Letter Post,Administration
Land Registry,Land Registry,20/11/2015,Letter Post,Gloucester Office,Royal Mail,Large,1130915,1554.12,Letter Post,Administration
Land Registry,Land Registry,20/11/2015,Letter Post,Hull Office,Royal Mail,Large,1130915,2564.9,Letter Post,Administration
Land Registry,Land Registry,20/11/2015,Letter Post,IS Service Delivery,Royal Mail,Large,1130915,14377.63,Letter Post,Administration
Land Registry,Land Registry,20/11/2015,Letter Post,Land Charges,Royal Mail,Large,1130915,785.75,Letter Post,Administration
Land Registry,Land Registry,20/11/2015,Letter Post,Leicester Office,Royal Mail,Large,1130915,1533.01,Letter Post,Administration
Land Registry,Land Registry,20/11/2015,Letter Post,Nottingham Office,Royal Mail,Large,1130915,2438.1,Letter Post,Administration
Land Registry,Land Registry,20/11/2015,Letter Post,Peterborough Office,Royal Mail,Large,1130915,2007.45,Letter Post,Administration
Land Registry,Land Registry,20/11/2015,Letter Post,Plymouth Office,Royal Mail,Large,1130915,2357.27,Letter Post,Administration
Land Registry,Land Registry,20/11/2015,Letter Post,Telford Office,Royal Mail,Large,1130915,2475,Letter Post,Administration
Land Registry,Land Registry,20/11/2015,Letter Post,Wales Office,Royal Mail,Large,1130915,12911.06,Letter Post,Administration
Land Registry,Land Registry,20/11/2015,Letter Post,Weymouth Office,Royal Mail,Large,1130915,1522.93,Letter Post,Administration
Land Registry,Land Registry,16/11/2015,Estate Surveyors Services,Dir: Finance,Sitec Building and Maintenance Ltd,SME,1129627,90132.08,Estate Surveyors Services,Administration
Land Registry,Land Registry,27/11/2015,Rates Payable,Governance & Policy,South Hams District Council,Large,1103042,4560,Rates Payable,Administration
Land Registry,Land Registry,27/11/2015,Rates Payable,RFS11 - Plymouth,South Hams District Council,Large,1103043,7987,Rates Payable,Administration
Land Registry,Land Registry,27/11/2015,Rates Payable,Telford Office,Telford & Wrekin Council,Large,1103039,25390,Rates Payable,Administration
Land Registry,Land Registry,27/11/2015,Rates Payable,Gloucester Computer Centre,Tewkesbury Borough Council,Large,1101942,11783,Rates Payable,Administration
Land Registry,Land Registry,06/11/2015,Maps & Plans Data Migration,Forward Scanning,TNT (UK) Ltd,Large,1128842,211332.13,Maps & Plans Data Migration,Administration
Land Registry,Land Registry,12/11/2015,RFS Outsourced Services,Central RFS,TNT (UK) Ltd,Large,1129632,115953.39,File Store Outsourced Services,Administration
Land Registry,Land Registry,12/11/2015,RFS Outsourced Services,Central RFS,TNT (UK) Ltd,Large,1129630,189645.45,File Store Outsourced Services,Administration
Land Registry,Land Registry,05/11/2015,Rates Payable,Weymouth Office,West Dorset District Council,Large,1104080,19350,Rates Payable,Administration
Land Registry,Land Registry,02/11/2015,Rates Payable,Birkenhead Office,Wirral Metrpolitan Borough Council,Large,1103044,3525,Rates Payable,Administration
Land Registry,Land Registry,02/11/2015,Rates Payable,Birkenhead Office,Wirral Metrpolitan Borough Council,Large,1103045,25143,Rates Payable,Administration
Land Registry,Land Registry,18/11/2015,Computer Equipment Consumables,Birkenhead Office,XMA Limited,Large,1130595,5047.01,Computer Equipment Consumables,Administration
Land Registry,Land Registry,18/11/2015,Computer Equipment Consumables,Coventry Office,XMA Limited,Large,1130595,9301.35,Computer Equipment Consumables,Administration
Land Registry,Land Registry,18/11/2015,Computer Equipment Consumables,Croydon Office,XMA Limited,Large,1130595,1029.14,Computer Equipment Consumables,Administration
Land Registry,Land Registry,18/11/2015,Computer Equipment Consumables,Durham Office,XMA Limited,Large,1130595,1212.64,Computer Equipment Consumables,Administration
Land Registry,Land Registry,18/11/2015,Computer Equipment Consumables,Fylde Office,XMA Limited,Large,1130595,2501.76,Computer Equipment Consumables,Administration
Land Registry,Land Registry,18/11/2015,Computer Equipment Consumables,Gloucester Office,XMA Limited,Large,1130595,2371.11,Computer Equipment Consumables,Administration
Land Registry,Land Registry,18/11/2015,Computer Equipment Consumables,Hull Office,XMA Limited,Large,1130595,972.05,Computer Equipment Consumables,Administration
Land Registry,Land Registry,18/11/2015,Computer Equipment Consumables,Internal Solutions Group,XMA Limited,Large,1130595,2412.54,Computer Equipment Consumables,Administration
Land Registry,Land Registry,18/11/2015,Computer Equipment Consumables,Leicester Office,XMA Limited,Large,1130595,2646.43,Computer Equipment Consumables,Administration
Land Registry,Land Registry,18/11/2015,Computer Equipment Consumables,Nottingham Office,XMA Limited,Large,1130595,1556.09,Computer Equipment Consumables,Administration
Land Registry,Land Registry,18/11/2015,Computer Equipment Consumables,Plymouth Office,XMA Limited,Large,1130595,4046.2,Computer Equipment Consumables,Administration
Land Registry,Land Registry,18/11/2015,Computer Equipment Consumables,Telford Office,XMA Limited,Large,1130595,1317.18,Computer Equipment Consumables,Administration
Land Registry,Land Registry,18/11/2015,Computer Equipment Consumables,Wales Office,XMA Limited,Large,1130595,8001.16,Computer Equipment Consumables,Administration
Land Registry,Land Registry,18/11/2015,Computer Equipment Consumables,Weymouth Office,XMA Limited,Large,1130595,2874.56,Computer Equipment Consumables,Administration
